Body,Body Name,Date,Transaction Number,Invoice Number,Amount,Supplier Name,Supplier ID ,VAT Registration Number ,Expense Area,Expense Type,Expense Code,Purchase Order
http://statistics.data.gov.uk/id/local-authority/29UP,Tonbridge & Malling Borough Council,12/1/2021,0011043538/1,11043538, 948.92,VIPSystem Ltd,01422600,,Purchases,Licences - Fee Paying,H27SH000040101,110069309
http://statistics.data.gov.uk/id/local-authority/29UP,Tonbridge & Malling Borough Council,12/1/2021,0011043538/2,11043538, 791.67,VIPSystem Ltd,01422600,,Purchases,Licences - Fee Paying,H27SH000040101,110069309
http://statistics.data.gov.uk/id/local-authority/29UP,Tonbridge & Malling Borough Council,12/1/2021,0011043538/3,11043538, 257.08,VIPSystem Ltd,01422600,,Purchases,Licences - Fee Paying,H27SH000040101,110069309
http://statistics.data.gov.uk/id/local-authority/29UP,Tonbridge & Malling Borough Council,12/1/2021,0011043538/4,11043538, 128.54,VIPSystem Ltd,01422600,,Purchases,Licences - Fee Paying,H27SH000040101,110069309
http://statistics.data.gov.uk/id/local-authority/29UP,Tonbridge & Malling Borough Council,12/1/2021,0011043538/5,11043538, 385.62,VIPSystem Ltd,01422600,,Purchases,Licences - Fee Paying,H27SH000040101,110069309
http://statistics.data.gov.uk/id/local-authority/29UP,Tonbridge & Malling Borough Council,12/1/2021,0011043538/6,11043538, 51.98,VIPSystem Ltd,01422600,,Purchases,Licences - Fee Paying,H27SH000040101,110069309
http://statistics.data.gov.uk/id/local-authority/29UP,Tonbridge & Malling Borough Council,12/1/2021,0011043538/7,11043538, 129.15,VIPSystem Ltd,01422600,,Purchases,Licences - Fee Paying,H27SH000040101,110069309
http://statistics.data.gov.uk/id/local-authority/29UP,Tonbridge & Malling Borough Council,12/1/2021,0011043539/1,11043539, 181.00,Coolburn Air Conditioning Ltd,01137900,,BRREP Servicing-Air Condition,Gibson Building West,M15KBP20001935,110069324
http://statistics.data.gov.uk/id/local-authority/29UP,Tonbridge & Malling Borough Council,12/1/2021,0011043540/1,11043540, 278.78,Atlas Facilities Managment Limited ,01075900,,Miscellaneous Services,Cleaning & Security,D21FDDD6044015,110069318
http://statistics.data.gov.uk/id/local-authority/29UP,Tonbridge & Malling Borough Council,12/1/2021,0011043541/1,11043541, 278.78,Atlas Facilities Managment Limited ,01075900,,Miscellaneous Services,Cleaning & Security,D21FDDD1044015,110069317
http://statistics.data.gov.uk/id/local-authority/29UP,Tonbridge & Malling Borough Council,12/1/2021,0011043542/1,11043542, 2200.00,G C Industrial Heating Services,00578100,,BRREP Plant renewals,Tonbridge Farm Pavillion,M15HGP20001909,110069303
http://statistics.data.gov.uk/id/local-authority/29UP,Tonbridge & Malling Borough Council,12/1/2021,0011043543/1,11043543, 210.00,G C Industrial Heating Services,00578100,,BRREP Servicing - Heating Syst,Tonbridge Swimming Pool,M15HBP20001934,110069320
http://statistics.data.gov.uk/id/local-authority/29UP,Tonbridge & Malling Borough Council,12/1/2021,0011043544/1,11043544, 3120.00,BML Building Services Ltd,01505000,,BRREP Response - General,Pleasure Grounds & Open Spaces,M15HHP50001997,110069329
http://statistics.data.gov.uk/id/local-authority/29UP,Tonbridge & Malling Borough Council,12/1/2021,0011043545/1,11043545, 48.58,KM Media Group Ltd,00053900,,Advertising General,Licences - Fee Paying,H27SHZ99944216,110069327
http://statistics.data.gov.uk/id/local-authority/29UP,Tonbridge & Malling Borough Council,12/1/2021,0011043546/1,11043546, 6090.62,Partnership Regeneration Development Ltd,01822400,,Re-opening High Streets,Eco Dev & Reg Gen Bus Support,D52TDCV1948076,110069299
http://statistics.data.gov.uk/id/local-authority/29UP,Tonbridge & Malling Borough Council,12/1/2021,0011043548/1,11043548, 0.33,Castle Water,01696500,,Estate Management Charge,Land Review,D40PS000020400,
http://statistics.data.gov.uk/id/local-authority/29UP,Tonbridge & Malling Borough Council,12/1/2021,0011043548/2,11043548, 173.33,Castle Water,01696500,,Estate Management Charge,Land Review,D40PS000020400,
http://statistics.data.gov.uk/id/local-authority/29UP,Tonbridge & Malling Borough Council,12/1/2021,0011043549/1,11043549, 180.15,K T Fire Protection Ltd,00057000,,BRREP Servicing - FireAlarmSys,Larkfield Leisure Centre,M15HDP20001937,
http://statistics.data.gov.uk/id/local-authority/29UP,Tonbridge & Malling Borough Council,12/1/2021,0011043550/1,11043550, 117.00,Edmundson Electrical Ltd,01210900,,Fixtures & Fittings,Buildings,D21FE000025001,
http://statistics.data.gov.uk/id/local-authority/29UP,Tonbridge & Malling Borough Council,12/1/2021,0011043551/1,11043551, 15150.00,Hartnell Taylor Cook,01539500,,Professional Fees,Land Review,D40PSTON144001,
http://statistics.data.gov.uk/id/local-authority/29UP,Tonbridge & Malling Borough Council,12/1/2021,0011043552/1,11043552, 496.00,Thomson Snell & Passmore,00101700,,Legal Fees,Legal Sals&Overheads,D01ARDR0044002,
http://statistics.data.gov.uk/id/local-authority/29UP,Tonbridge & Malling Borough Council,12/1/2021,0011043553/1,11043553, 1134.00,Venn Group Ltd,00914300,,Temporary Staff,Legal Sals&Overheads,D01ARDR0011300,
http://statistics.data.gov.uk/id/local-authority/29UP,Tonbridge & Malling Borough Council,12/1/2021,0011043554/1,11043554, 1134.00,Venn Group Ltd,00914300,,Temporary Staff,Legal Sals&Overheads,D01ARDR0011300,
http://statistics.data.gov.uk/id/local-authority/29UP,Tonbridge & Malling Borough Council,12/1/2021,0011043556/1,11043556, 588.00,Bevan Brittan LLP,01096600,,Legal Fees,Legal Sals&Overheads,D01ARDR0044002,
http://statistics.data.gov.uk/id/local-authority/29UP,Tonbridge & Malling Borough Council,12/1/2021,0011043558/1,11043558, 285.60,KCS,00054200,,Cleaning & Domestic Supplies,Cleaning & Security,D21FD000026001,110069321
http://statistics.data.gov.uk/id/local-authority/29UP,Tonbridge & Malling Borough Council,12/1/2021,0011043558/2,11043558, 171.00,KCS,00054200,,Cleaning & Domestic Supplies,Cleaning & Security,D21FD000026001,110069321
http://statistics.data.gov.uk/id/local-authority/29UP,Tonbridge & Malling Borough Council,12/1/2021,0011043558/3,11043558, 72.00,KCS,00054200,,Cleaning & Domestic Supplies,Cleaning & Security,D21FD000026001,110069321
http://statistics.data.gov.uk/id/local-authority/29UP,Tonbridge & Malling Borough Council,12/1/2021,0011043558/4,11043558, 19.20,KCS,00054200,,Cleaning & Domestic Supplies,Cleaning & Security,D21FD000026001,110069321
http://statistics.data.gov.uk/id/local-authority/29UP,Tonbridge & Malling Borough Council,12/1/2021,0011043559/1,11043559, 2340.00,Westcountry Group,00656400,,Purchases,Central Stationery Stock A/c,K03AD000001002,110069282
http://statistics.data.gov.uk/id/local-authority/29UP,Tonbridge & Malling Borough Council,12/1/2021,0011043560/1,11043560, 4.80,Royal Mail,00086200,,Purchases,Mailsort Stock Account,K37BR000001002,
http://statistics.data.gov.uk/id/local-authority/29UP,Tonbridge & Malling Borough Council,12/1/2021,0011043560/2,11043560, 1115.51,Royal Mail,00086200,,Purchases,Mailsort Stock Account,K37BR000001002,
http://statistics.data.gov.uk/id/local-authority/29UP,Tonbridge & Malling Borough Council,12/1/2021,0011043561/1,11043561, 250.00,Envirocure Limited,00963300,,BRREP Legionella Certification,Larkfield Leisure Centre,M15HDP30001995,
http://statistics.data.gov.uk/id/local-authority/29UP,Tonbridge & Malling Borough Council,12/1/2021,0011043562/1,11043562, 45.50,Edmundson Electrical Ltd,01210900,,Fixtures & Fittings,Buildings,D21FE000025001,
http://statistics.data.gov.uk/id/local-authority/29UP,Tonbridge & Malling Borough Council,12/1/2021,0012008197/1,12008197, 4660.00,NetConsent Limited,01823600,,Software Hire & Support,Information Technology,D27KD000044059,410032090
http://statistics.data.gov.uk/id/local-authority/29UP,Tonbridge & Malling Borough Council,12/1/2021,0021037593/1,21037593, 2275.00,Bravo Productions,01770200,,Re-opening High Streets,Eco Dev & Reg Gen Bus Support,D52TDCV1948076,210056591
http://statistics.data.gov.uk/id/local-authority/29UP,Tonbridge & Malling Borough Council,12/1/2021,0021037594/1,21037594, 1680.00,Procom Communication Services,00075800,,Initial Furniture & Equipment,Capital Renewals Leisure,P05KGBC0209906,210056562
http://statistics.data.gov.uk/id/local-authority/29UP,Tonbridge & Malling Borough Council,12/1/2021,0021037595/1,21037595, 150.00,Procom Communication Services,00075800,,Initial Furniture & Equipment,Capital Renewals Leisure,P05KGBC0209906,210056578
http://statistics.data.gov.uk/id/local-authority/29UP,Tonbridge & Malling Borough Council,12/1/2021,0021037596/3,21037596, 129.38,KCC - L.A.S.E.R Commercial Services ,00184300,,Electricity,Open Spaces & Amenity Areas,B22LE000021002,
http://statistics.data.gov.uk/id/local-authority/29UP,Tonbridge & Malling Borough Council,12/1/2021,0021037602/1,21037602, 20341.80,Landscape Services Ltd,00057600,,Grounds Maintenance Contract,Sports Grounds,B13ET000050103,
http://statistics.data.gov.uk/id/local-authority/29UP,Tonbridge & Malling Borough Council,12/1/2021,0021037602/10,21037602, 149.11,Landscape Services Ltd,00057600,,Grounds Maintenance Contract,Churchyards St Stephens,B28MY000050103,
http://statistics.data.gov.uk/id/local-authority/29UP,Tonbridge & Malling Borough Council,12/1/2021,0021037602/11,21037602, 164.81,Landscape Services Ltd,00057600,,Grounds Maintenance Contract,Grounds,D21FF000050103,
http://statistics.data.gov.uk/id/local-authority/29UP,Tonbridge & Malling Borough Council,12/1/2021,0021037602/12,21037602, 312.58,Landscape Services Ltd,00057600,,Maintenance of Grounds,Parking Off-Street,E10HA000020402,
http://statistics.data.gov.uk/id/local-authority/29UP,Tonbridge & Malling Borough Council,12/1/2021,0021037602/13,21037602, 980.27,Landscape Services Ltd,00057600,,Maintenance of Grounds,Parking Off-Street,E10HAE00120402,
http://statistics.data.gov.uk/id/local-authority/29UP,Tonbridge & Malling Borough Council,12/1/2021,0021037602/14,21037602, 93.08,Landscape Services Ltd,00057600,,Maintenance of Grounds,Parking Off-Street,E10HAE00220402,
http://statistics.data.gov.uk/id/local-authority/29UP,Tonbridge & Malling Borough Council,12/1/2021,0021037602/15,21037602, 84.41,Landscape Services Ltd,00057600,,Maintenance of Grounds,Parking Off-Street,E10HAE00320402,
http://statistics.data.gov.uk/id/local-authority/29UP,Tonbridge & Malling Borough Council,12/1/2021,0021037602/16,21037602, 21.05,Landscape Services Ltd,00057600,,Maintenance of Grounds,Parking Off-Street,E10HAE00420402,
http://statistics.data.gov.uk/id/local-authority/29UP,Tonbridge & Malling Borough Council,12/1/2021,0021037602/17,21037602, 0.54,Landscape Services Ltd,00057600,,Maintenance of Grounds,Parking Off-Street,E10HAE00520402,
http://statistics.data.gov.uk/id/local-authority/29UP,Tonbridge & Malling Borough Council,12/1/2021,0021037602/18,21037602, 58.93,Landscape Services Ltd,00057600,,Maintenance of Grounds,Parking Off-Street,E10HAE00620402,
http://statistics.data.gov.uk/id/local-authority/29UP,Tonbridge & Malling Borough Council,12/1/2021,0021037602/19,21037602, 137.58,Landscape Services Ltd,00057600,,Maintenance of Grounds,Parking Off-Street,E10HAE01020402,
http://statistics.data.gov.uk/id/local-authority/29UP,Tonbridge & Malling Borough Council,12/1/2021,0021037602/2,21037602, 7076.24,Landscape Services Ltd,00057600,,Grounds Maintenance Contract,Tonbridge Castle Grounds,B22LB000050103,
http://statistics.data.gov.uk/id/local-authority/29UP,Tonbridge & Malling Borough Council,12/1/2021,0021037602/20,21037602, 3.05,Landscape Services Ltd,00057600,,Maintenance of Grounds,Parking Off-Street,E10HAE01220402,
http://statistics.data.gov.uk/id/local-authority/29UP,Tonbridge & Malling Borough Council,12/1/2021,0021037602/21,21037602, 6.73,Landscape Services Ltd,00057600,,Maintenance of Grounds,Parking Off-Street,E10HAE01320402,
http://statistics.data.gov.uk/id/local-authority/29UP,Tonbridge & Malling Borough Council,12/1/2021,0021037602/22,21037602, 27.99,Landscape Services Ltd,00057600,,Maintenance of Grounds,Parking Off-Street,E10HAE01520402,
http://statistics.data.gov.uk/id/local-authority/29UP,Tonbridge & Malling Borough Council,12/1/2021,0021037602/23,21037602, 54.69,Landscape Services Ltd,00057600,,Maintenance of Grounds,Parking Off-Street,E10HAE01620402,
http://statistics.data.gov.uk/id/local-authority/29UP,Tonbridge & Malling Borough Council,12/1/2021,0021037602/24,21037602, 13.65,Landscape Services Ltd,00057600,,Maintenance of Grounds,Parking Off-Street,E10HAE02120402,
http://statistics.data.gov.uk/id/local-authority/29UP,Tonbridge & Malling Borough Council,12/1/2021,0021037602/25,21037602, 21.74,Landscape Services Ltd,00057600,,Maintenance of Grounds,Parking Off-Street,E10HAE02320402,
http://statistics.data.gov.uk/id/local-authority/29UP,Tonbridge & Malling Borough Council,12/1/2021,0021037602/26,21037602, 83.33,Landscape Services Ltd,00057600,,Maintenance of Grounds,Parking Off-Street,E10HAE02820402,
http://statistics.data.gov.uk/id/local-authority/29UP,Tonbridge & Malling Borough Council,12/1/2021,0021037602/27,21037602, 22.56,Landscape Services Ltd,00057600,,Maintenance of Grounds,Parking Off-Street,E10HAE04020402,
http://statistics.data.gov.uk/id/local-authority/29UP,Tonbridge & Malling Borough Council,12/1/2021,0021037602/28,21037602, 74.40,Landscape Services Ltd,00057600,,Maintenance of Grounds,Parking Off-Street,E10HAE04520402,
http://statistics.data.gov.uk/id/local-authority/29UP,Tonbridge & Malling Borough Council,12/1/2021,0021037602/3,21037602, 53.86,Landscape Services Ltd,00057600,,Trade Refuse Charges,Haysden Country Park,B22LC000044008,
http://statistics.data.gov.uk/id/local-authority/29UP,Tonbridge & Malling Borough Council,12/1/2021,0021037602/4,21037602, 462.07,Landscape Services Ltd,00057600,,Litter Collection,Haysden Country Park,B22LC000044061,
http://statistics.data.gov.uk/id/local-authority/29UP,Tonbridge & Malling Borough Council,12/1/2021,0021037602/5,21037602, 1600.71,Landscape Services Ltd,00057600,,Grounds Maintenance Contract,Haysden Country Park,B22LC000050103,
http://statistics.data.gov.uk/id/local-authority/29UP,Tonbridge & Malling Borough Council,12/1/2021,0021037602/6,21037602, 554.05,Landscape Services Ltd,00057600,,Grounds Maintenance Contract,Haysden Country Park,B22LC000050103,
http://statistics.data.gov.uk/id/local-authority/29UP,Tonbridge & Malling Borough Council,12/1/2021,0021037602/7,21037602, 11232.13,Landscape Services Ltd,00057600,,Grounds Maintenance Contract,Open Spaces & Amenity Areas,B22LE000050103,
http://statistics.data.gov.uk/id/local-authority/29UP,Tonbridge & Malling Borough Council,12/1/2021,0021037602/8,21037602, 4341.07,Landscape Services Ltd,00057600,,Grounds Maintenance Contract,Cemetery,B26MP000050103,
http://statistics.data.gov.uk/id/local-authority/29UP,Tonbridge & Malling Borough Council,12/1/2021,0021037602/9,21037602, 205.04,Landscape Services Ltd,00057600,,Grounds Maintenance Contract,Churchyards St Peter & St Paul,B28MX000050103,
http://statistics.data.gov.uk/id/local-authority/29UP,Tonbridge & Malling Borough Council,12/1/2021,0021037603/1,21037603, 50.00,South East Water Ltd,01330300,,Maintenance of Grounds,Haysden Country Park,B22LC000020402,
http://statistics.data.gov.uk/id/local-authority/29UP,Tonbridge & Malling Borough Council,12/1/2021,0021037603/2,21037603, 56.25,South East Water Ltd,01330300,,Water Sampling,Environmental Protection,H32SN000054010,
http://statistics.data.gov.uk/id/local-authority/29UP,Tonbridge & Malling Borough Council,12/1/2021,0021037604/1,21037604, 175.00,Advantage Media UK LTD,01527900,,Events Support,Events Development,B41TJ000044041,210056545
http://statistics.data.gov.uk/id/local-authority/29UP,Tonbridge & Malling Borough Council,12/1/2021,0021037604/2,21037604, 450.00,Advantage Media UK LTD,01527900,,Events Support,Events Development,B41TJ000044041,210056545
http://statistics.data.gov.uk/id/local-authority/29UP,Tonbridge & Malling Borough Council,12/1/2021,0021037605/1,21037605, 1462.50,Arnold Tarmac Ltd,01685100,,Maintenance of Grounds,Tonbridge Castle Grounds,B22LB000020402,210056589
http://statistics.data.gov.uk/id/local-authority/29UP,Tonbridge & Malling Borough Council,12/1/2021,0021037606/1,21037606, 30.00,Weddle and Co,00714900,,Maintenance of Play Equipment,Open Spaces & Amenity Areas,B22LE000020503,210056590
http://statistics.data.gov.uk/id/local-authority/29UP,Tonbridge & Malling Borough Council,12/1/2021,0021037607/1,21037607, 490.96,Landscape Services Ltd,00057600,,Grounds Maintenance Contract,Cemetery,B26MP000050103,
http://statistics.data.gov.uk/id/local-authority/29UP,Tonbridge & Malling Borough Council,12/1/2021,0021037608/1,21037608, 275.00,Flash Mobile Welding Services Ltd,01189200,,Maintenance of Grounds,Open Spaces & Amenity Areas,B22LE000020402,210056551
http://statistics.data.gov.uk/id/local-authority/29UP,Tonbridge & Malling Borough Council,12/1/2021,0021037609/1,21037609, 150.00,Flash Mobile Welding Services Ltd,01189200,,Maintenance of Grounds,Cemetery,B26MP000020402,210056598
http://statistics.data.gov.uk/id/local-authority/29UP,Tonbridge & Malling Borough Council,12/1/2021,0021037611/1,21037611, 1780.00,Treework,00560700,,Maintenance of Grounds,Open Spaces & Amenity Areas,B22LE000020402,210056521
http://statistics.data.gov.uk/id/local-authority/29UP,Tonbridge & Malling Borough Council,12/1/2021,0022026018/3,22026018, 763.31,G2 Recruitment Solutions,01786000,,Temporary Staff,Env Hlth & Hsg Sals&Overheads,D01AVDV0711300,
http://statistics.data.gov.uk/id/local-authority/29UP,Tonbridge & Malling Borough Council,12/1/2021,0022026020/3,22026020, 1496.80,The Oyster Partnership,01196400,,Temporary Staff,Planning Sals&Overheads,D01AJDJ0111300,
http://statistics.data.gov.uk/id/local-authority/29UP,Tonbridge & Malling Borough Council,12/1/2021,0022026021/1,22026021, 684.96,Scottish Water Business Stream Ltd,01641100,,Sewerage Charges,Public Conveniences,H22SCH01224003,
http://statistics.data.gov.uk/id/local-authority/29UP,Tonbridge & Malling Borough Council,12/1/2021,0022026022/3,22026022, 1044.00,The Oyster Partnership,01196400,,Temporary Staff,Env Hlth & Hsg Sals&Overheads,D01AVDV0711300,
http://statistics.data.gov.uk/id/local-authority/29UP,Tonbridge & Malling Borough Council,12/1/2021,0022026024/1,22026024, 7032.08,Clarion Housing,01078200,,Contribution from Other Bodies,Homelessness,C01AACV1995001,
http://statistics.data.gov.uk/id/local-authority/29UP,Tonbridge & Malling Borough Council,12/1/2021,0022026025/1,22026025, 1239.50,Vivid Resourcing,01773700,,Temporary Staff,Env Hlth & Hsg Sals&Overheads,D01AVDV0711300,
http://statistics.data.gov.uk/id/local-authority/29UP,Tonbridge & Malling Borough Council,12/1/2021,0022026026/1,22026026, 5347.74,All Home Services Ltd,01802400,,Other Expenses,Disabled Facilities Grant Mand,P03AC000009908,
http://statistics.data.gov.uk/id/local-authority/29UP,Tonbridge & Malling Borough Council,12/1/2021,0022026027/1,22026027, 770.08,Peabody South East LTD,01680900,,Other Expenses,Disabled Facilities Grant Mand,P03AC000009908,
http://statistics.data.gov.uk/id/local-authority/29UP,Tonbridge & Malling Borough Council,12/1/2021,0022026028/1,22026028, 438.80,Countrystyle Group,00835900,781981681,Plastic Recycling,Dry Recycling,H34SR000054019,
http://statistics.data.gov.uk/id/local-authority/29UP,Tonbridge & Malling Borough Council,12/1/2021,0022026029/1,22026029, 383.48,KCC - L.A.S.E.R Commercial Services ,00184300,,Electricity,Public Conveniences,H22SCH00421002,
http://statistics.data.gov.uk/id/local-authority/29UP,Tonbridge & Malling Borough Council,12/1/2021,0022026030/1,22026030, 930.00,Kent Property Services,01722500,,Temporary Accommodation,Homelessness,C01AA000044051,
http://statistics.data.gov.uk/id/local-authority/29UP,Tonbridge & Malling Borough Council,12/1/2021,0022026032/1,22026032, 354.43,Urbaser LTD,01718800,,Maintenance of Grounds,Sports Grounds,B13ET000020402,
http://statistics.data.gov.uk/id/local-authority/29UP,Tonbridge & Malling Borough Council,12/1/2021,0022026032/10,22026032, 55.10,Urbaser LTD,01718800,,Maintenance of Grounds,Grounds,D21FF000020402,
http://statistics.data.gov.uk/id/local-authority/29UP,Tonbridge & Malling Borough Council,12/1/2021,0022026032/11,22026032, 168.53,Urbaser LTD,01718800,,Maintenance of Grounds,Parking Off-Street,E10HA000020402,
http://statistics.data.gov.uk/id/local-authority/29UP,Tonbridge & Malling Borough Council,12/1/2021,0022026032/12,22026032, 4288.11,Urbaser LTD,01718800,,Maintenance of Grounds,Parking Off-Street,E10HAE00120402,
http://statistics.data.gov.uk/id/local-authority/29UP,Tonbridge & Malling Borough Council,12/1/2021,0022026032/13,22026032, 461.92,Urbaser LTD,01718800,,Maintenance of Grounds,Parking Off-Street,E10HAE00220402,
http://statistics.data.gov.uk/id/local-authority/29UP,Tonbridge & Malling Borough Council,12/1/2021,0022026032/14,22026032, 288.97,Urbaser LTD,01718800,,Maintenance of Grounds,Parking Off-Street,E10HAE00320402,
http://statistics.data.gov.uk/id/local-authority/29UP,Tonbridge & Malling Borough Council,12/1/2021,0022026032/15,22026032, 1511.29,Urbaser LTD,01718800,,Maintenance of Grounds,Parking Off-Street,E10HAE00420402,
http://statistics.data.gov.uk/id/local-authority/29UP,Tonbridge & Malling Borough Council,12/1/2021,0022026032/16,22026032, 251.14,Urbaser LTD,01718800,,Maintenance of Grounds,Parking Off-Street,E10HAE00520402,
http://statistics.data.gov.uk/id/local-authority/29UP,Tonbridge & Malling Borough Council,12/1/2021,0022026032/17,22026032, 936.67,Urbaser LTD,01718800,,Maintenance of Grounds,Parking Off-Street,E10HAE00620402,
http://statistics.data.gov.uk/id/local-authority/29UP,Tonbridge & Malling Borough Council,12/1/2021,0022026032/18,22026032, 7.90,Urbaser LTD,01718800,,Maintenance of Grounds,Parking Off-Street,E10HAE00820402,
http://statistics.data.gov.uk/id/local-authority/29UP,Tonbridge & Malling Borough Council,12/1/2021,0022026032/19,22026032, 7.80,Urbaser LTD,01718800,,Maintenance of Grounds,Parking Off-Street,E10HAE00920402,
http://statistics.data.gov.uk/id/local-authority/29UP,Tonbridge & Malling Borough Council,12/1/2021,0022026032/2,22026032, 75.43,Urbaser LTD,01718800,,Maintenance of Grounds,Poult Wood Golf Centre,B21KE000020402,
http://statistics.data.gov.uk/id/local-authority/29UP,Tonbridge & Malling Borough Council,12/1/2021,0022026032/20,22026032, 18.51,Urbaser LTD,01718800,,Maintenance of Grounds,Parking Off-Street,E10HAE01020402,
http://statistics.data.gov.uk/id/local-authority/29UP,Tonbridge & Malling Borough Council,12/1/2021,0022026032/21,22026032, 87.95,Urbaser LTD,01718800,,Maintenance of Grounds,Parking Off-Street,E10HAE01120402,
http://statistics.data.gov.uk/id/local-authority/29UP,Tonbridge & Malling Borough Council,12/1/2021,0022026032/22,22026032, 55.34,Urbaser LTD,01718800,,Maintenance of Grounds,Parking Off-Street,E10HAE01220402,
http://statistics.data.gov.uk/id/local-authority/29UP,Tonbridge & Malling Borough Council,12/1/2021,0022026032/23,22026032, 1049.30,Urbaser LTD,01718800,,Maintenance of Grounds,Parking Off-Street,E10HAE01320402,
http://statistics.data.gov.uk/id/local-authority/29UP,Tonbridge & Malling Borough Council,12/1/2021,0022026032/24,22026032, 79.80,Urbaser LTD,01718800,,Maintenance of Grounds,Parking Off-Street,E10HAE01420402,
http://statistics.data.gov.uk/id/local-authority/29UP,Tonbridge & Malling Borough Council,12/1/2021,0022026032/25,22026032, 245.93,Urbaser LTD,01718800,,Maintenance of Grounds,Parking Off-Street,E10HAE01520402,
http://statistics.data.gov.uk/id/local-authority/29UP,Tonbridge & Malling Borough Council,12/1/2021,0022026032/26,22026032, 264.50,Urbaser LTD,01718800,,Maintenance of Grounds,Parking Off-Street,E10HAE01620402,
http://statistics.data.gov.uk/id/local-authority/29UP,Tonbridge & Malling Borough Council,12/1/2021,0022026032/27,22026032, 780.85,Urbaser LTD,01718800,,Maintenance of Grounds,Parking Off-Street,E10HAE01720402,
http://statistics.data.gov.uk/id/local-authority/29UP,Tonbridge & Malling Borough Council,12/1/2021,0022026032/28,22026032, 224.12,Urbaser LTD,01718800,,Maintenance of Grounds,Parking Off-Street,E10HAE01920402,
http://statistics.data.gov.uk/id/local-authority/29UP,Tonbridge & Malling Borough Council,12/1/2021,0022026032/29,22026032, 492.32,Urbaser LTD,01718800,,Maintenance of Grounds,Parking Off-Street,E10HAE02020402,
http://statistics.data.gov.uk/id/local-authority/29UP,Tonbridge & Malling Borough Council,12/1/2021,0022026032/3,22026032, 31.13,Urbaser LTD,01718800,,Maintenance of Grounds,Haysden Country Park,B22LC000020402,
http://statistics.data.gov.uk/id/local-authority/29UP,Tonbridge & Malling Borough Council,12/1/2021,0022026032/30,22026032, 17.09,Urbaser LTD,01718800,,Maintenance of Grounds,Parking Off-Street,E10HAE02120402,
http://statistics.data.gov.uk/id/local-authority/29UP,Tonbridge & Malling Borough Council,12/1/2021,0022026032/31,22026032, 112.54,Urbaser LTD,01718800,,Maintenance of Grounds,Parking Off-Street,E10HAE02220402,
http://statistics.data.gov.uk/id/local-authority/29UP,Tonbridge & Malling Borough Council,12/1/2021,0022026032/32,22026032, 946.10,Urbaser LTD,01718800,,Maintenance of Grounds,Parking Off-Street,E10HAE02320402,
http://statistics.data.gov.uk/id/local-authority/29UP,Tonbridge & Malling Borough Council,12/1/2021,0022026032/33,22026032, 2.44,Urbaser LTD,01718800,,Maintenance of Grounds,Parking Off-Street,E10HAE02720402,
http://statistics.data.gov.uk/id/local-authority/29UP,Tonbridge & Malling Borough Council,12/1/2021,0022026032/34,22026032, 343.77,Urbaser LTD,01718800,,Maintenance of Grounds,Parking Off-Street,E10HAE02820402,
http://statistics.data.gov.uk/id/local-authority/29UP,Tonbridge & Malling Borough Council,12/1/2021,0022026032/35,22026032, 6.19,Urbaser LTD,01718800,,Maintenance of Grounds,Parking Off-Street,E10HAE02920402,
http://statistics.data.gov.uk/id/local-authority/29UP,Tonbridge & Malling Borough Council,12/1/2021,0022026032/36,22026032, 36.43,Urbaser LTD,01718800,,Maintenance of Grounds,Parking Off-Street,E10HAE03020402,
http://statistics.data.gov.uk/id/local-authority/29UP,Tonbridge & Malling Borough Council,12/1/2021,0022026032/37,22026032, 31.00,Urbaser LTD,01718800,,Maintenance of Grounds,Parking Off-Street,E10HAE03120402,
http://statistics.data.gov.uk/id/local-authority/29UP,Tonbridge & Malling Borough Council,12/1/2021,0022026032/38,22026032, 657.32,Urbaser LTD,01718800,,Maintenance of Grounds,Parking Off-Street,E10HAE04020402,
http://statistics.data.gov.uk/id/local-authority/29UP,Tonbridge & Malling Borough Council,12/1/2021,0022026032/39,22026032, 455.90,Urbaser LTD,01718800,,Maintenance of Grounds,Parking Off-Street,E10HAE04220402,
http://statistics.data.gov.uk/id/local-authority/29UP,Tonbridge & Malling Borough Council,12/1/2021,0022026032/4,22026032, 23.91,Urbaser LTD,01718800,,Dog Bin Emptying,Haysden Country Park,B22LC000044012,
http://statistics.data.gov.uk/id/local-authority/29UP,Tonbridge & Malling Borough Council,12/1/2021,0022026032/40,22026032, 1308.55,Urbaser LTD,01718800,,Maintenance of Grounds,Parking Off-Street,E10HAE04520402,
http://statistics.data.gov.uk/id/local-authority/29UP,Tonbridge & Malling Borough Council,12/1/2021,0022026032/41,22026032, 81773.77,Urbaser LTD,01718800,,Contract Payments,Refuse Collection,H20SA000054001,
http://statistics.data.gov.uk/id/local-authority/29UP,Tonbridge & Malling Borough Council,12/1/2021,0022026032/42,22026032, 865.70,Urbaser LTD,01718800,,Responsible Dog Ownership,Street Scene,H23SD000044050,
http://statistics.data.gov.uk/id/local-authority/29UP,Tonbridge & Malling Borough Council,12/1/2021,0022026032/43,22026032, 51717.72,Urbaser LTD,01718800,,Contract Payments,Street Scene,H23SD000054001,
http://statistics.data.gov.uk/id/local-authority/29UP,Tonbridge & Malling Borough Council,12/1/2021,0022026032/44,22026032, 819.23,Urbaser LTD,01718800,,General Maintenance,Dry Recycling,H34SR000020301,
http://statistics.data.gov.uk/id/local-authority/29UP,Tonbridge & Malling Borough Council,12/1/2021,0022026032/45,22026032, 73613.88,Urbaser LTD,01718800,,Contract Payments,Dry Recycling,H34SR000054001,
http://statistics.data.gov.uk/id/local-authority/29UP,Tonbridge & Malling Borough Council,12/1/2021,0022026032/46,22026032, 3803.64,Urbaser LTD,01718800,,Bring Sites Mixed Recycling,Dry Recycling,H34SR000054026,
http://statistics.data.gov.uk/id/local-authority/29UP,Tonbridge & Malling Borough Council,12/1/2021,0022026032/47,22026032, 28804.34,Urbaser LTD,01718800,,Contract Payments,Food Recycling,H34SS000054001,
http://statistics.data.gov.uk/id/local-authority/29UP,Tonbridge & Malling Borough Council,12/1/2021,0022026032/48,22026032, 16367.16,Urbaser LTD,01718800,,Contract Payments,Garden Waste Recycling,H34ST000054001,
http://statistics.data.gov.uk/id/local-authority/29UP,Tonbridge & Malling Borough Council,12/1/2021,0022026032/5,22026032, 677.66,Urbaser LTD,01718800,,Maintenance of Grounds,Open Spaces & Amenity Areas,B22LE000020402,
http://statistics.data.gov.uk/id/local-authority/29UP,Tonbridge & Malling Borough Council,12/1/2021,0022026032/6,22026032, 12.75,Urbaser LTD,01718800,,Dog Bin Emptying,Open Spaces & Amenity Areas,B22LE000044012,
http://statistics.data.gov.uk/id/local-authority/29UP,Tonbridge & Malling Borough Council,12/1/2021,0022026032/7,22026032, 22.00,Urbaser LTD,01718800,,Maintenance of Grounds,Countryside/Woodland Mgt,B22LG000020402,
http://statistics.data.gov.uk/id/local-authority/29UP,Tonbridge & Malling Borough Council,12/1/2021,0022026032/8,22026032, 66.06,Urbaser LTD,01718800,,Maintenance of Grounds,Leybourne Lakes Country Park,B22LK000020402,
http://statistics.data.gov.uk/id/local-authority/29UP,Tonbridge & Malling Borough Council,12/1/2021,0022026032/9,22026032, 23.91,Urbaser LTD,01718800,,Dog Bin Emptying,Leybourne Lakes Country Park,B22LK000044012,
http://statistics.data.gov.uk/id/local-authority/29UP,Tonbridge & Malling Borough Council,12/1/2021,0022026033/1,22026033, 48.04,Klipspringer Thermometers,01058600,,Other Expenses,Food & Safety - Food Safety,H35SX000048010,220003172
http://statistics.data.gov.uk/id/local-authority/29UP,Tonbridge & Malling Borough Council,12/1/2021,0022026033/2,22026033, 10.00,Klipspringer Thermometers,01058600,,Other Expenses,Food & Safety - Food Safety,H35SX000048010,220003172
http://statistics.data.gov.uk/id/local-authority/29UP,Tonbridge & Malling Borough Council,12/1/2021,0022026034/1,22026034, 7791.21,DCB (Kent) LTD,01326800,,Other Expenses,Disabled Facilities Grant Mand,P03AC000009908,
http://statistics.data.gov.uk/id/local-authority/29UP,Tonbridge & Malling Borough Council,12/1/2021,0022026035/1,22026035, 1121.94,Peabody South East LTD,01680900,,Other Expenses,Disabled Facilities Grant Mand,P03AC000009908,
http://statistics.data.gov.uk/id/local-authority/29UP,Tonbridge & Malling Borough Council,12/1/2021,0022026036/1,22026036, 4304.67,Clarion Housing,01776300,,Temporary Accommodation,Homelessness,C01AA000044051,
http://statistics.data.gov.uk/id/local-authority/29UP,Tonbridge & Malling Borough Council,12/1/2021,0031018313/1,31018313, 1396.00,Derbyshire Aggregates,01259900,,Winter Maintenance,Parking Off-Street,E10HA000020701,310042750
http://statistics.data.gov.uk/id/local-authority/29UP,Tonbridge & Malling Borough Council,12/1/2021,0031018314/4,31018314, 140.67,Npower Ltd,01675800,,Electricity,Parking Off-Street,E10HA000021002,
http://statistics.data.gov.uk/id/local-authority/29UP,Tonbridge & Malling Borough Council,12/1/2021,0031018314/5,31018314, 6.35,Npower Ltd,01675800,,Electricity,Parking Off-Street,E10HA000021002,
http://statistics.data.gov.uk/id/local-authority/29UP,Tonbridge & Malling Borough Council,12/1/2021,0031018315/4,31018315, 57.62,Npower Ltd,01675800,,Electricity,Parking Off-Street,E10HA000021002,
http://statistics.data.gov.uk/id/local-authority/29UP,Tonbridge & Malling Borough Council,12/1/2021,0031018315/5,31018315, 2.24,Npower Ltd,01675800,,Electricity,Parking Off-Street,E10HA000021002,
http://statistics.data.gov.uk/id/local-authority/29UP,Tonbridge & Malling Borough Council,12/1/2021,0031018316/4,31018316, 30.20,Npower Ltd,01675800,,Electricity,Parking Off-Street,E10HA000021002,
http://statistics.data.gov.uk/id/local-authority/29UP,Tonbridge & Malling Borough Council,12/1/2021,0031018316/5,31018316, 1.14,Npower Ltd,01675800,,Electricity,Parking Off-Street,E10HA000021002,
http://statistics.data.gov.uk/id/local-authority/29UP,Tonbridge & Malling Borough Council,12/1/2021,0031018317/3,31018317, 8820.00,Sevenoaks District Council,00089300,,Out of Hours Service,Civil Contingencies,D33NA000045025,
http://statistics.data.gov.uk/id/local-authority/29UP,Tonbridge & Malling Borough Council,12/1/2021,0031018318/4,31018318, 45.31,Npower Ltd,01675800,,Electricity,Parking Off-Street,E10HA000021002,
http://statistics.data.gov.uk/id/local-authority/29UP,Tonbridge & Malling Borough Council,12/1/2021,0031018318/5,31018318, 1.93,Npower Ltd,01675800,,Electricity,Parking Off-Street,E10HA000021002,
http://statistics.data.gov.uk/id/local-authority/29UP,Tonbridge & Malling Borough Council,12/1/2021,0031018319/4,31018319, 26.16,Npower Ltd,01675800,,Electricity,Parking Off-Street,E10HA000021002,
http://statistics.data.gov.uk/id/local-authority/29UP,Tonbridge & Malling Borough Council,12/1/2021,0031018319/5,31018319, 1.09,Npower Ltd,01675800,,Electricity,Parking Off-Street,E10HA000021002,
http://statistics.data.gov.uk/id/local-authority/29UP,Tonbridge & Malling Borough Council,12/1/2021,0031018320/4,31018320, 119.29,Npower Ltd,01675800,,Electricity,Parking Off-Street,E10HA000021002,
http://statistics.data.gov.uk/id/local-authority/29UP,Tonbridge & Malling Borough Council,12/1/2021,0031018320/5,31018320, 6.07,Npower Ltd,01675800,,Electricity,Parking Off-Street,E10HA000021002,
http://statistics.data.gov.uk/id/local-authority/29UP,Tonbridge & Malling Borough Council,12/1/2021,0031018321/1,31018321, 65.47,Shell U.K. Oil Products Limited,01673300,,"Petrol, Diesel & Oil",Patrolling,B22LF000030106,
http://statistics.data.gov.uk/id/local-authority/29UP,Tonbridge & Malling Borough Council,12/1/2021,0031018321/2,31018321, 116.08,Shell U.K. Oil Products Limited,01673300,,"Petrol, Diesel & Oil",Parking Off-Street,E10HA000030106,
http://statistics.data.gov.uk/id/local-authority/29UP,Tonbridge & Malling Borough Council,12/1/2021,0031018321/3,31018321, 116.07,Shell U.K. Oil Products Limited,01673300,,"Petrol, Diesel & Oil",Parking On-Street,E10HD000030106,
http://statistics.data.gov.uk/id/local-authority/29UP,Tonbridge & Malling Borough Council,12/1/2021,0031018322/1,31018322, 114.28,Arnold & Court Ltd,01411300,,Repair & Mtce of Fixed Plant,Boro Highways & Emergency Oper,E01AA000020501,
http://statistics.data.gov.uk/id/local-authority/29UP,Tonbridge & Malling Borough Council,12/1/2021,0031018322/2,31018322, 57.16,Arnold & Court Ltd,01411300,,Premises Repairs & Maintenance,Parking Off-Street,E10HAE00620601,
http://statistics.data.gov.uk/id/local-authority/29UP,Tonbridge & Malling Borough Council,12/1/2021,0031018322/3,31018322, 136.28,Arnold & Court Ltd,01411300,,Premises Repairs & Maintenance,Parking Off-Street,E10HAE01620601,
http://statistics.data.gov.uk/id/local-authority/29UP,Tonbridge & Malling Borough Council,12/1/2021,0031018322/4,31018322, 114.28,Arnold & Court Ltd,01411300,,Maintenance of Grounds,Parking Off-Street,E10HAE02320402,
http://statistics.data.gov.uk/id/local-authority/29UP,Tonbridge & Malling Borough Council,12/1/2021,0031018323/1,31018323, 171.42,Arnold & Court Ltd,01411300,,Maintenance of Grounds,Parking Off-Street,E10HA000020402,
http://statistics.data.gov.uk/id/local-authority/29UP,Tonbridge & Malling Borough Council,12/1/2021,0031018323/2,31018323, 277.44,Arnold & Court Ltd,01411300,,Premises Repairs & Maintenance,Parking Off-Street,E10HAE02120601,
http://statistics.data.gov.uk/id/local-authority/29UP,Tonbridge & Malling Borough Council,12/1/2021,0031018323/3,31018323, 57.14,Arnold & Court Ltd,01411300,,Purchases,Parking On-Street,E10HD000040101,
http://statistics.data.gov.uk/id/local-authority/29UP,Tonbridge & Malling Borough Council,12/1/2021,0031018324/1,31018324, 114.28,Arnold & Court Ltd,01411300,,Premises Repairs & Maintenance,Parking Off-Street,E10HAE00120601,
http://statistics.data.gov.uk/id/local-authority/29UP,Tonbridge & Malling Borough Council,12/1/2021,0031018324/2,31018324, 57.14,Arnold & Court Ltd,01411300,,Premises Repairs & Maintenance,Parking Off-Street,E10HAE00220601,
http://statistics.data.gov.uk/id/local-authority/29UP,Tonbridge & Malling Borough Council,12/1/2021,0031018324/3,31018324, 124.30,Arnold & Court Ltd,01411300,,Premises Repairs & Maintenance,Parking Off-Street,E10HAE02220601,
http://statistics.data.gov.uk/id/local-authority/29UP,Tonbridge & Malling Borough Council,12/1/2021,0031018324/4,31018324, 114.28,Arnold & Court Ltd,01411300,,Premises Repairs & Maintenance,Parking On-Street,E10HD000020601,
http://statistics.data.gov.uk/id/local-authority/29UP,Tonbridge & Malling Borough Council,12/1/2021,0031018325/1,31018325, 1960.00,Arnold & Court Ltd,01411300,,Repair & Mtce of Fixed Plant,Boro Highways & Emergency Oper,E01AA000020501,
http://statistics.data.gov.uk/id/local-authority/29UP,Tonbridge & Malling Borough Council,12/1/2021,0031018326/1,31018326, 1370.00,Arnold & Court Ltd,01411300,,Premises Repairs & Maintenance,Parking Off-Street,E10HAE00220601,
http://statistics.data.gov.uk/id/local-authority/29UP,Tonbridge & Malling Borough Council,12/1/2021,0031018327/1,31018327, 400.00,Arnold & Court Ltd,01411300,,BRREP Car Park mntce,Leis Man Poult Wood Golf Centr,M15HEP20001953,
http://statistics.data.gov.uk/id/local-authority/29UP,Tonbridge & Malling Borough Council,12/1/2021,0031018328/1,31018328, 171.44,Arnold & Court Ltd,01411300,,Bridge Maintenance,Open Spaces & Amenity Areas,B22LE000020505,
http://statistics.data.gov.uk/id/local-authority/29UP,Tonbridge & Malling Borough Council,12/1/2021,0031018328/2,31018328, 428.56,Arnold & Court Ltd,01411300,,Maintenance of Grounds,Churchyards St Peter & St Paul,B28MX000020402,
http://statistics.data.gov.uk/id/local-authority/29UP,Tonbridge & Malling Borough Council,12/1/2021,0031018329/1,31018329, 228.58,Arnold & Court Ltd,01411300,,Repair & Mtce of Fixed Plant,Boro Highways & Emergency Oper,E01AA000020501,
http://statistics.data.gov.uk/id/local-authority/29UP,Tonbridge & Malling Borough Council,12/1/2021,0031018329/2,31018329, 181.42,Arnold & Court Ltd,01411300,,BRREP General Maintenance,Land Review,M15MAP10001900,
http://statistics.data.gov.uk/id/local-authority/29UP,Tonbridge & Malling Borough Council,12/1/2021,0032009323/1,32009323, 156.15,KM Media Group Ltd,00053900,,Advertising General,Development Management,A01ABZ99944216,320003354
http://statistics.data.gov.uk/id/local-authority/29UP,Tonbridge & Malling Borough Council,12/1/2021,0041033706/1,41033706, 14290.00,Grant Thornton UK LLP,01407400,,Audit Fees,Public Accountability,D29LR000044223,410032065
http://statistics.data.gov.uk/id/local-authority/29UP,Tonbridge & Malling Borough Council,12/1/2021,0041033707/3,41033707, 610.50,KH Recruitment Ltd,01738900,,Temporary Staff,Finance Sals&Overheads,D01AFDF1111300,
http://statistics.data.gov.uk/id/local-authority/29UP,Tonbridge & Malling Borough Council,12/1/2021,0041033710/3,41033710, 925.00,Morgan Hunt UK Ltd,01086900,,Temporary Staff,Finance Sals&Overheads,D01AFDF1111300,
http://statistics.data.gov.uk/id/local-authority/29UP,Tonbridge & Malling Borough Council,12/1/2021,0041033711/3,41033711, 980.50,Morgan Hunt UK Ltd,01086900,,Temporary Staff,Finance Sals&Overheads,D01AFDF1111300,
http://statistics.data.gov.uk/id/local-authority/29UP,Tonbridge & Malling Borough Council,12/1/2021,0041033716/1,41033716, 5454.55,KHIPU Networks Limited,01191500,,Maintenance - Ancillary Equip,Information Technology,D27KD000040137,410032087
http://statistics.data.gov.uk/id/local-authority/29UP,Tonbridge & Malling Borough Council,12/1/2021,0041033717/1,41033717, 530.77,Rundle & Co Ltd,00087200,,Bailiffs Commission,Local Revenue & NNDR Collect,D41QA000044075,
http://statistics.data.gov.uk/id/local-authority/29UP,Tonbridge & Malling Borough Council,12/1/2021,0041033718/1,41033718, 769.45,Rundle & Co Ltd,00087200,,Bailiffs Commission,Local Revenue & NNDR Collect,D41QA000044075,
http://statistics.data.gov.uk/id/local-authority/29UP,Tonbridge & Malling Borough Council,12/1/2021,0041033724/1,41033724, 15.00,BNP Paribas,01360500,,Bank Charges,Banking Arrangements,D43QK000044222,
http://statistics.data.gov.uk/id/local-authority/29UP,Tonbridge & Malling Borough Council,12/1/2021,0051008623/3,51008623, 198.00,RH Environmental Ltd RH Global,01221000,,Ext Fees/Prof & Tech,Training,D10DCDV0913561,
http://statistics.data.gov.uk/id/local-authority/29UP,Tonbridge & Malling Borough Council,12/1/2021,0051008624/1,51008624, 325.00,St John Ambulance Supplies,01228000,,Ext Fees/Health & Safety,Training,D10DCDB0313566,510010528
http://statistics.data.gov.uk/id/local-authority/29UP,Tonbridge & Malling Borough Council,12/1/2021,0051008625/3,51008625, 110.00,St John Ambulance Supplies,01228000,,Ext Fees/Health & Safety,Training,D10DCDJ0313566,
http://statistics.data.gov.uk/id/local-authority/29UP,Tonbridge & Malling Borough Council,12/6/2021,0041033734/1,41033734, 12.50,National Westminster Bank Plc,00894500,,Purchases,Tonbridge Castle Gatehouse,B40TG000040101,
http://statistics.data.gov.uk/id/local-authority/29UP,Tonbridge & Malling Borough Council,12/6/2021,0041033734/10,41033734, 44.97,National Westminster Bank Plc,00894500,,Sales,TIC Stock Account,K18AX000002002,
http://statistics.data.gov.uk/id/local-authority/29UP,Tonbridge & Malling Borough Council,12/6/2021,0041033734/11,41033734, 33.14,National Westminster Bank Plc,00894500,,Sales,TIC Stock Account,K18AX000002002,
http://statistics.data.gov.uk/id/local-authority/29UP,Tonbridge & Malling Borough Council,12/6/2021,0041033734/2,41033734, 550.07,National Westminster Bank Plc,00894500,,Marketing,Tonbridge Castle Gatehouse,B40TG000044215,
http://statistics.data.gov.uk/id/local-authority/29UP,Tonbridge & Malling Borough Council,12/6/2021,0041033734/4,41033734, 125.00,National Westminster Bank Plc,00894500,,Software Hire & Support,Information Technology,D27KD000044059,
http://statistics.data.gov.uk/id/local-authority/29UP,Tonbridge & Malling Borough Council,12/6/2021,0041033734/5,41033734, 15.16,National Westminster Bank Plc,00894500,,Software Hire & Support,Information Technology,D27KD000044059,
http://statistics.data.gov.uk/id/local-authority/29UP,Tonbridge & Malling Borough Council,12/6/2021,0041033734/6,41033734, 73.28,National Westminster Bank Plc,00894500,,Software Hire & Support,Information Technology,D27KD000044059,
http://statistics.data.gov.uk/id/local-authority/29UP,Tonbridge & Malling Borough Council,12/6/2021,0041033734/7,41033734, 111.00,National Westminster Bank Plc,00894500,,Vehicle Licences,Parking Off-Street,E10HA000030105,
http://statistics.data.gov.uk/id/local-authority/29UP,Tonbridge & Malling Borough Council,12/6/2021,0041033734/8,41033734, 166.50,National Westminster Bank Plc,00894500,,Vehicle Licences,Parking On-Street,E10HD000030105,
http://statistics.data.gov.uk/id/local-authority/29UP,Tonbridge & Malling Borough Council,12/6/2021,0041033734/9,41033734, 19.48,National Westminster Bank Plc,00894500,,Sales,TIC Stock Account,K18AX000002002,
http://statistics.data.gov.uk/id/local-authority/29UP,Tonbridge & Malling Borough Council,12/6/2021,0041033736/1,41033736, 15.20,HSBC Bank Plc,01740800,,Bank Charges,Banking Arrangements,D43QK000044222,
http://statistics.data.gov.uk/id/local-authority/29UP,Tonbridge & Malling Borough Council,12/6/2021,0041033737/1,41033737, 68.00,National Westminster Bank Plc,00069400,,Direct Debit / Bank Charges,Local Revenue & NNDR Collect,D41QA000044079,
http://statistics.data.gov.uk/id/local-authority/29UP,Tonbridge & Malling Borough Council,12/6/2021,0041033738/1,41033738, 200.71,National Westminster Bank Plc,00069400,,Direct Debit / Bank Charges,Local Revenue & NNDR Collect,D41QA000044079,
http://statistics.data.gov.uk/id/local-authority/29UP,Tonbridge & Malling Borough Council,12/6/2021,0041033739/1,41033739, 36.00,YESpay International Limited,01068000,991280207,Contract Services,Banking Arrangements,D43QK000044005,
http://statistics.data.gov.uk/id/local-authority/29UP,Tonbridge & Malling Borough Council,12/8/2021,0011043563/1,11043563, 365.30,The Bradley Group Ltd,01671800,,BRREP Fire Safety Risk Assess,Leybourne Lakes Country Park,M15HLP30001999,110069301
http://statistics.data.gov.uk/id/local-authority/29UP,Tonbridge & Malling Borough Council,12/8/2021,0011043564/1,11043564, 1250.00,Adkins Consultants Ltd,01775700,,BRREP General Maintenance,Larkfield Leisure Centre,M15HDP10001900,110069128
http://statistics.data.gov.uk/id/local-authority/29UP,Tonbridge & Malling Borough Council,12/8/2021,0011043565/1,11043565, 45.50,Edmundson Electrical Ltd,01210900,,Cleaning & Domestic Supplies,Cleaning & Security,D21FDDD1026001,110069218
http://statistics.data.gov.uk/id/local-authority/29UP,Tonbridge & Malling Borough Council,12/8/2021,0011043566/1,11043566, 158.00,BML Building Services Ltd,01505000,,BRREP Window/door repairs,Leis Man Poult Wood Golf Centr,M15HEP20001919,110069310
http://statistics.data.gov.uk/id/local-authority/29UP,Tonbridge & Malling Borough Council,12/8/2021,0011043567/1,11043567, 1424.00,BML Building Services Ltd,01505000,,BRREP Response - General,Shops & Maisonettes,M15NAP50001997,110069284
http://statistics.data.gov.uk/id/local-authority/29UP,Tonbridge & Malling Borough Council,12/8/2021,0011043568/1,11043568, 94.00,BML Building Services Ltd,01505000,,BRREP Response - General,Larkfield Leisure Centre,M15HDP50001997,110069307
http://statistics.data.gov.uk/id/local-authority/29UP,Tonbridge & Malling Borough Council,12/8/2021,0011043569/1,11043569, 930.00,Comfort Controls  (Service) Limited,01226700,,BRREP BMS System Mntce/Upgrade,Larkfield Leisure Centre,M15HDP20001912,110069337
http://statistics.data.gov.uk/id/local-authority/29UP,Tonbridge & Malling Borough Council,12/8/2021,0011043570/1,11043570, 2.05,KCS,00054200,,Purchases,Central Stationery Stock A/c,K03AD000001002,110069341
http://statistics.data.gov.uk/id/local-authority/29UP,Tonbridge & Malling Borough Council,12/8/2021,0011043571/1,11043571, 54.00,Kent Crisps Ltd,01806500,,Purchases,TIC Stock Account,K18AX000001002,
http://statistics.data.gov.uk/id/local-authority/29UP,Tonbridge & Malling Borough Council,12/8/2021,0011043573/1,11043573, 750.00,REDACTED PERSONAL DATA,01750300,,H&CG Fund Council Specific,Eco Dev & Reg Gen Bus Support,D52TD000047027,
http://statistics.data.gov.uk/id/local-authority/29UP,Tonbridge & Malling Borough Council,12/8/2021,0011043574/1,11043574, 325.00,Stuart Thomas Photography,00416800,,Other Expenses,Mayoral & Other Member Support,D29LX000048010,
http://statistics.data.gov.uk/id/local-authority/29UP,Tonbridge & Malling Borough Council,12/8/2021,0011043575/1,11043575, 256.98,KCS,00054200,,Estate Management Charge,Land Review,D40PS000020400,
http://statistics.data.gov.uk/id/local-authority/29UP,Tonbridge & Malling Borough Council,12/8/2021,0011043576/1,11043576, 1948.01,KCS,00054200,,Electricity,Buildings,D21FEDD6021002,
http://statistics.data.gov.uk/id/local-authority/29UP,Tonbridge & Malling Borough Council,12/8/2021,0011043577/1,11043577, 4462.48,KCS,00054200,,Electricity,Buildings,D21FEDD1021002,
http://statistics.data.gov.uk/id/local-authority/29UP,Tonbridge & Malling Borough Council,12/8/2021,0011043578/1,11043578, 2296.43,KCS,00054200,,Electricity,Buildings,D21FEDD5021002,
http://statistics.data.gov.uk/id/local-authority/29UP,Tonbridge & Malling Borough Council,12/8/2021,0011043579/1,11043579, 303.30,Royal Mail,00086200,,Postages - Business Reply,Electoral Registration,D31MF000045003,
http://statistics.data.gov.uk/id/local-authority/29UP,Tonbridge & Malling Borough Council,12/8/2021,0011043579/2,11043579, 46.20,Royal Mail,00086200,,Purchases,Business Reply Stock Account,K14AT000001002,
http://statistics.data.gov.uk/id/local-authority/29UP,Tonbridge & Malling Borough Council,12/8/2021,0011043580/1,11043580, 5608.65,Royal Mail,00086200,,Postages - PPI / Walksort,Conduct of Elections,D31MG000045017,
http://statistics.data.gov.uk/id/local-authority/29UP,Tonbridge & Malling Borough Council,12/8/2021,0011043580/2,11043580, 1343.10,Royal Mail,00086200,,Purchases,Mailsort Stock Account,K37BR000001002,
http://statistics.data.gov.uk/id/local-authority/29UP,Tonbridge & Malling Borough Council,12/8/2021,0011043580/3,11043580, 3.20,Royal Mail,00086200,,Purchases,Mailsort Stock Account,K37BR000001002,
http://statistics.data.gov.uk/id/local-authority/29UP,Tonbridge & Malling Borough Council,12/8/2021,0011043580/4,11043580, 6.47,Royal Mail,00086200,,Purchases,Mailsort Stock Account,K37BR000001002,
http://statistics.data.gov.uk/id/local-authority/29UP,Tonbridge & Malling Borough Council,12/8/2021,0011043581/1,11043581, 30.00,Sevenoaks Mayor's Charity Account,01273000,,Hospitality,Mayoral & Other Member Support,D29LX000048003,
http://statistics.data.gov.uk/id/local-authority/29UP,Tonbridge & Malling Borough Council,12/8/2021,0011043582/1,11043582, 198.00,BML Building Services Ltd,01505000,,BRREP Window/door repairs,Tonbridge Castle / CAB,M15KFP20001919,
http://statistics.data.gov.uk/id/local-authority/29UP,Tonbridge & Malling Borough Council,12/8/2021,0011043583/1,11043583, 84.00,BML Building Services Ltd,01505000,,BRREP Window/door repairs,PC - General,M15JAP20001919,
http://statistics.data.gov.uk/id/local-authority/29UP,Tonbridge & Malling Borough Council,12/8/2021,0011043584/1,11043584, 1120.00,Disclosure & Barring Service,00865900,,Professional Fees,Licences - Fee Paying,H27SH000044001,
http://statistics.data.gov.uk/id/local-authority/29UP,Tonbridge & Malling Borough Council,12/8/2021,0011043585/1,11043585, 63.60,Biffa Waste Services Ltd,01284500,,Trade Refuse Charges,Cleaning & Security,D21FD000044008,
http://statistics.data.gov.uk/id/local-authority/29UP,Tonbridge & Malling Borough Council,12/8/2021,0011043586/1,11043586, 27.87,Biffa Waste Services Ltd,01284500,,Trade Refuse Charges,Cleaning & Security,D21FD000044008,
http://statistics.data.gov.uk/id/local-authority/29UP,Tonbridge & Malling Borough Council,12/8/2021,0011043587/1,11043587, 27.87,Biffa Waste Services Ltd,01284500,,Trade Refuse Charges,Cleaning & Security,D21FD000044008,
http://statistics.data.gov.uk/id/local-authority/29UP,Tonbridge & Malling Borough Council,12/8/2021,0011043588/1,11043588, 32.48,Biffa Waste Services Ltd,01284500,,Trade Refuse Charges,Cleaning & Security,D21FD000044008,
http://statistics.data.gov.uk/id/local-authority/29UP,Tonbridge & Malling Borough Council,12/8/2021,0011043589/1,11043589, 160.80,Biffa Waste Services Ltd,01284500,,Trade Refuse Charges,Cleaning & Security,D21FD000044008,
http://statistics.data.gov.uk/id/local-authority/29UP,Tonbridge & Malling Borough Council,12/8/2021,0011043590/1,11043590, 268.00,Biffa Waste Services Ltd,01284500,,Trade Refuse Charges,Cleaning & Security,D21FD000044008,
http://statistics.data.gov.uk/id/local-authority/29UP,Tonbridge & Malling Borough Council,12/8/2021,0011043591/1,11043591, 350.00,G C Industrial Heating Services,00578100,,BRREP Servicing - boilers,Tonbridge Farm Pavillion,M15HGP20001929,
http://statistics.data.gov.uk/id/local-authority/29UP,Tonbridge & Malling Borough Council,12/8/2021,0011043592/1,11043592, 139.00,BML Building Services Ltd,01505000,,BRREP Window/door repairs,Tonbridge Castle / CAB,M15KFP20001919,
http://statistics.data.gov.uk/id/local-authority/29UP,Tonbridge & Malling Borough Council,12/8/2021,0011043593/1,11043593, 450.00,Laura Colyer Small Animal Care Limited,01653800,,Professional Fees,Licences - Fee Paying,H27SH000044001,
http://statistics.data.gov.uk/id/local-authority/29UP,Tonbridge & Malling Borough Council,12/8/2021,0012008085/1,12008085, 559.50,KCS,00054200,,Leasing Charges,Multi Function Devices,D22GB000044038,
http://statistics.data.gov.uk/id/local-authority/29UP,Tonbridge & Malling Borough Council,12/8/2021,0012008198/1,12008198, 1600.00,KHIPU Networks Limited,01191500,,Consultancy Fees,Information Technology,D27KD000044011,410032091
http://statistics.data.gov.uk/id/local-authority/29UP,Tonbridge & Malling Borough Council,12/8/2021,0012008199/3,12008199, 12.06,Esendex Limited,01008900,,Leased Lines & Modems,Information Technology,D27KD000045011,
http://statistics.data.gov.uk/id/local-authority/29UP,Tonbridge & Malling Borough Council,12/8/2021,0012008200/3,12008200, 29.43,KCS,00054200,,Leasing Charges,Multi Function Devices,D22GB000044038,
http://statistics.data.gov.uk/id/local-authority/29UP,Tonbridge & Malling Borough Council,12/8/2021,0012008201/1,12008201, 7.49,Amazon EU SARL,01738400,,Purchases,Information Technology,D27KD000040101,410032093
http://statistics.data.gov.uk/id/local-authority/29UP,Tonbridge & Malling Borough Council,12/8/2021,0012008201/2,12008201, 4.16,Amazon EU SARL,01738400,,Delivery Expenses,Information Technology,D27KD000044069,410032093
http://statistics.data.gov.uk/id/local-authority/29UP,Tonbridge & Malling Borough Council,12/8/2021,0012008202/1,12008202, 1609.54,NTT Cloud Communications UK Ltd,01794600,,Software Hire & Support,Information Technology,D27KD000044059,410031928
http://statistics.data.gov.uk/id/local-authority/29UP,Tonbridge & Malling Borough Council,12/8/2021,0012008203/1,12008203, 525.00,TotalMobile Limited,01725400,,Consultancy Fees,Information Technology,D27KD000044011,410032066
http://statistics.data.gov.uk/id/local-authority/29UP,Tonbridge & Malling Borough Council,12/8/2021,0012008204/3,12008204, 11.14,Daisy Communications,01068100,,Telephones - General,Leybourne Lakes Country Park,B22LK000045010,
http://statistics.data.gov.uk/id/local-authority/29UP,Tonbridge & Malling Borough Council,12/8/2021,0012008204/4,12008204, 0.81,Daisy Communications,01068100,,Telephones - Rentals,General Admin Telephones,D24GT000045005,
http://statistics.data.gov.uk/id/local-authority/29UP,Tonbridge & Malling Borough Council,12/8/2021,0012008204/5,12008204, 252.90,Daisy Communications,01068100,,Telephones - Call Costs,General Admin Telephones,D24GT000045006,
http://statistics.data.gov.uk/id/local-authority/29UP,Tonbridge & Malling Borough Council,12/8/2021,0012008204/6,12008204, 84.88,Daisy Communications,01068100,,Leased Lines & Modems,Information Technology,D27KD000045011,
http://statistics.data.gov.uk/id/local-authority/29UP,Tonbridge & Malling Borough Council,12/8/2021,0012008204/7,12008204, 65.88,Daisy Communications,01068100,,Maintenance - General,Security Services Management,E09GA000040135,
http://statistics.data.gov.uk/id/local-authority/29UP,Tonbridge & Malling Borough Council,12/8/2021,0021037612/1,21037612, 116.25,Lamberhurst Engineering Ltd,01306400,,Maintenance of Grounds,Leybourne Lakes Country Park,B22LK000020402,210056563
http://statistics.data.gov.uk/id/local-authority/29UP,Tonbridge & Malling Borough Council,12/8/2021,0021037612/2,21037612, 369.00,Lamberhurst Engineering Ltd,01306400,,Maintenance of Grounds,Leybourne Lakes Country Park,B22LK000020402,210056563
http://statistics.data.gov.uk/id/local-authority/29UP,Tonbridge & Malling Borough Council,12/8/2021,0021037612/3,21037612, 52.50,Lamberhurst Engineering Ltd,01306400,,Maintenance of Grounds,Leybourne Lakes Country Park,B22LK000020402,210056563
http://statistics.data.gov.uk/id/local-authority/29UP,Tonbridge & Malling Borough Council,12/8/2021,0021037612/4,21037612, 142.50,Lamberhurst Engineering Ltd,01306400,,Maintenance of Grounds,Leybourne Lakes Country Park,B22LK000020402,210056563
http://statistics.data.gov.uk/id/local-authority/29UP,Tonbridge & Malling Borough Council,12/8/2021,0021037613/1,21037613, 10750.00,Malling Masonry,01822100,,Re-opening High Streets,Eco Dev & Reg Gen Bus Support,D52TDCV1948076,210056576
http://statistics.data.gov.uk/id/local-authority/29UP,Tonbridge & Malling Borough Council,12/8/2021,0021037615/1,21037615, 1026.00,Prosec General Security Ltd,00810600,,Events Support,Events Development,B41TJ000044041,
http://statistics.data.gov.uk/id/local-authority/29UP,Tonbridge & Malling Borough Council,12/8/2021,0021037616/1,21037616, 120.85,Toms Tree Ties,00614800,,Tree Planting Schemes,Countryside/Woodland Mgt,B22LH000020405,210056597
http://statistics.data.gov.uk/id/local-authority/29UP,Tonbridge & Malling Borough Council,12/8/2021,0021037616/2,21037616, 16.00,REDACTED PERSONAL DATA,00614800,,Tree Planting Schemes,Countryside/Woodland Mgt,B22LH000020405,210056597
http://statistics.data.gov.uk/id/local-authority/29UP,Tonbridge & Malling Borough Council,12/8/2021,0021037617/1,21037617, 690.92,Amethyst Horticulture,01546900,,Re-opening High Streets,Eco Dev & Reg Gen Bus Support,D52TDCV1948076,210056593
http://statistics.data.gov.uk/id/local-authority/29UP,Tonbridge & Malling Borough Council,12/8/2021,0021037618/1,21037618, 527.40,G.L. & R.G. Bourne,00737500,,Gates / Security,Haysden Country Park,B22LC000044017,210056214
http://statistics.data.gov.uk/id/local-authority/29UP,Tonbridge & Malling Borough Council,12/8/2021,0021037619/1,21037619, 72.30,G.L. & R.G. Bourne,00737500,,Gates / Security,Haysden Country Park,B22LC000044017,210056214
http://statistics.data.gov.uk/id/local-authority/29UP,Tonbridge & Malling Borough Council,12/8/2021,0021037620/1,21037620, 6.00,G.L. & R.G. Bourne,00737500,,Gates / Security,Haysden Country Park,B22LC000044017,210056214
http://statistics.data.gov.uk/id/local-authority/29UP,Tonbridge & Malling Borough Council,12/8/2021,0021037621/1,21037621, 54.00,HABOKE Woodyard,01804700,,Maintenance of Grounds,Open Spaces & Amenity Areas,B22LE000020402,210056595
http://statistics.data.gov.uk/id/local-authority/29UP,Tonbridge & Malling Borough Council,12/8/2021,0022026038/3,22026038, 61.64,Amazon EU SARL,01738400,,Purchases,Env Hlth & Hsg Sals&Overheads,D01AVDV0940101,
http://statistics.data.gov.uk/id/local-authority/29UP,Tonbridge & Malling Borough Council,12/8/2021,0022026039/3,22026039, 763.31,G2 Recruitment Solutions,01786000,,Temporary Staff,Env Hlth & Hsg Sals&Overheads,D01AVDV0711300,
http://statistics.data.gov.uk/id/local-authority/29UP,Tonbridge & Malling Borough Council,12/8/2021,0022026040/1,22026040, 498.00,Peabody South East LTD,01680900,,Other Expenses,Housing Assistance,P03AD000009908,
http://statistics.data.gov.uk/id/local-authority/29UP,Tonbridge & Malling Borough Council,12/8/2021,0022026041/1,22026041, 654.00,Peabody South East LTD,01680900,,Other Expenses,Housing Assistance,P03AD000009908,
http://statistics.data.gov.uk/id/local-authority/29UP,Tonbridge & Malling Borough Council,12/8/2021,0022026042/1,22026042, 690.00,Peabody South East LTD,01680900,,Other Expenses,Housing Assistance,P03AD000009908,
http://statistics.data.gov.uk/id/local-authority/29UP,Tonbridge & Malling Borough Council,12/8/2021,0022026043/3,22026043, 34.67,Premier Inn,01217400,,Temporary Accommodation,Homelessness,C01AA000044051,
http://statistics.data.gov.uk/id/local-authority/29UP,Tonbridge & Malling Borough Council,12/8/2021,0022026044/1,22026044, 2162.04,The Care Group-Housing & Care Trust,01699600,,Temporary Accommodation,Homelessness,C01AA000044051,
http://statistics.data.gov.uk/id/local-authority/29UP,Tonbridge & Malling Borough Council,12/8/2021,0022026045/1,22026045, 28344.50,Social & Community Care,01768400,,Temporary Accommodation,Homelessness,C01AA000044051,
http://statistics.data.gov.uk/id/local-authority/29UP,Tonbridge & Malling Borough Council,12/8/2021,0022026046/3,22026046, 1157.84,Vivid Resourcing,01773700,,Temporary Staff,Env Hlth & Hsg Sals&Overheads,D01AVDV0711300,
http://statistics.data.gov.uk/id/local-authority/29UP,Tonbridge & Malling Borough Council,12/8/2021,0022026047/3,22026047, 4645.60,Countrystyle Group,00835900,781981681,Plastic Recycling,Dry Recycling,H34SR000054019,
http://statistics.data.gov.uk/id/local-authority/29UP,Tonbridge & Malling Borough Council,12/8/2021,0022026048/3,22026048, 400.00,Green Recycling LTD,01563000,,Paper Recycling,Dry Recycling,H34SR000054024,
http://statistics.data.gov.uk/id/local-authority/29UP,Tonbridge & Malling Borough Council,12/8/2021,0022026049/1,22026049, 195.00,Green Recycling LTD,01563000,,General Maintenance,Dry Recycling,H34SR000020301,220003169
http://statistics.data.gov.uk/id/local-authority/29UP,Tonbridge & Malling Borough Council,12/8/2021,0022026050/3,22026050, 325.00,Monitor Pest Control Ltd,01476700,,Other Expenses,Pest Control,H24SE000048010,
http://statistics.data.gov.uk/id/local-authority/29UP,Tonbridge & Malling Borough Council,12/8/2021,0022026052/3,22026052, 1632.00,The Oyster Partnership,01196400,,Temporary Staff,Env Hlth & Hsg Sals&Overheads,D01AVDV0711300,
http://statistics.data.gov.uk/id/local-authority/29UP,Tonbridge & Malling Borough Council,12/8/2021,0022026053/1,22026053, 13323.36,Urbaser LTD,01718800,,Contract Payments,Refuse Collection,H20SA000054001,
http://statistics.data.gov.uk/id/local-authority/29UP,Tonbridge & Malling Borough Council,12/8/2021,0022026053/2,22026053, 11475.13,Urbaser LTD,01718800,,Contract Payments,Street Scene,H23SD000054001,
http://statistics.data.gov.uk/id/local-authority/29UP,Tonbridge & Malling Borough Council,12/8/2021,0022026053/3,22026053, 1690.87,Urbaser LTD,01718800,,Contract Payments,Dry Recycling,H34SR000054001,
http://statistics.data.gov.uk/id/local-authority/29UP,Tonbridge & Malling Borough Council,12/8/2021,0022026053/4,22026053, 255.32,Urbaser LTD,01718800,,Contract Payments,Food Recycling,H34SS000054001,
http://statistics.data.gov.uk/id/local-authority/29UP,Tonbridge & Malling Borough Council,12/8/2021,0022026053/5,22026053, 12017.01,Urbaser LTD,01718800,,Contract Payments,Garden Waste Recycling,H34ST000054001,
http://statistics.data.gov.uk/id/local-authority/29UP,Tonbridge & Malling Borough Council,12/8/2021,0022026056/1,22026056, 3735.29,Ward Security LTD,01490000,,Dog Warden,Street Scene,H23SD000044100,
http://statistics.data.gov.uk/id/local-authority/29UP,Tonbridge & Malling Borough Council,12/8/2021,0022026057/1,22026057, 2043.30,Ward Security LTD,01490000,,Dog Warden,Street Scene,H23SD000044100,
http://statistics.data.gov.uk/id/local-authority/29UP,Tonbridge & Malling Borough Council,12/8/2021,0022026058/1,22026058, 268.63,KCC - L.A.S.E.R Commercial Services ,00184300,,Air Quality Monitoring,Environmental Protection,H32SN000054016,
http://statistics.data.gov.uk/id/local-authority/29UP,Tonbridge & Malling Borough Council,12/8/2021,0022026059/1,22026059, 630.00,DM Marketing Communications,01742000,,Publicity & Promotion,Dry Recycling,H34SRZ99944217,220003170
http://statistics.data.gov.uk/id/local-authority/29UP,Tonbridge & Malling Borough Council,12/8/2021,0022026060/1,22026060, 3240.00,1st  Steps Housing Kent,01716100,,Temporary Accommodation,Homelessness,C01AA000044051,
http://statistics.data.gov.uk/id/local-authority/29UP,Tonbridge & Malling Borough Council,12/8/2021,0022026061/1,22026061, 11775.00,Less Homeless Ltd,01489300,,Temporary Accommodation,Homelessness,C01AA000044051,
http://statistics.data.gov.uk/id/local-authority/29UP,Tonbridge & Malling Borough Council,12/8/2021,0022026062/1,22026062, 5880.00,Premier Property Providers,01785400,,Temporary Accommodation,Homelessness,C01AA000044051,
http://statistics.data.gov.uk/id/local-authority/29UP,Tonbridge & Malling Borough Council,12/8/2021,0022026063/1,22026063, 1500.00,Smart Property Professionals,01815100,,Temporary Accommodation,Homelessness,C01AA000044051,
http://statistics.data.gov.uk/id/local-authority/29UP,Tonbridge & Malling Borough Council,12/8/2021,0022026064/1,22026064, 2113.58,Acorn Maintenance Services,01036000,,Other Expenses,Disabled Facilities Grant Mand,P03AC000009908,
http://statistics.data.gov.uk/id/local-authority/29UP,Tonbridge & Malling Borough Council,12/8/2021,0022026065/1,22026065, 3925.15,Peabody South East LTD,01680900,,Other Expenses,Disabled Facilities Grant Mand,P03AC000009908,
http://statistics.data.gov.uk/id/local-authority/29UP,Tonbridge & Malling Borough Council,12/8/2021,0022026066/1,22026066, 209.80,Countrystyle Group,00835900,781981681,Plastic Recycling,Dry Recycling,H34SR000054019,
http://statistics.data.gov.uk/id/local-authority/29UP,Tonbridge & Malling Borough Council,12/8/2021,0022026067/1,22026067, 1930.20,Melba Products Ltd,00099400,,Purchases,Street Scene,H23SD000040101,220003153
http://statistics.data.gov.uk/id/local-authority/29UP,Tonbridge & Malling Borough Council,12/8/2021,0022026067/2,22026067, 1433.25,Melba Products Ltd,00099400,,Purchases,Street Scene,H23SD000040101,220003153
http://statistics.data.gov.uk/id/local-authority/29UP,Tonbridge & Malling Borough Council,12/8/2021,0022026067/3,22026067, 196.40,Melba Products Ltd,00099400,,Purchases,Street Scene,H23SD000040101,220003153
http://statistics.data.gov.uk/id/local-authority/29UP,Tonbridge & Malling Borough Council,12/8/2021,0022026068/1,22026068, 18655.00,SPA CAFFE LIMITED,00127100,,Temporary Accommodation,Homelessness,C01AA000044051,
http://statistics.data.gov.uk/id/local-authority/29UP,Tonbridge & Malling Borough Council,12/8/2021,0031018330/3,31018330, 28.57,Arnold & Court Ltd,01411300,,Repair & Mtce of Fixed Plant,Boro Highways & Emergency Oper,E01AA000020501,
http://statistics.data.gov.uk/id/local-authority/29UP,Tonbridge & Malling Borough Council,12/8/2021,0031018330/4,31018330, 85.71,Arnold & Court Ltd,01411300,,Premises Repairs & Maintenance,Parking Off-Street,E10HA000020601,
http://statistics.data.gov.uk/id/local-authority/29UP,Tonbridge & Malling Borough Council,12/8/2021,0031018330/5,31018330, 373.72,Arnold & Court Ltd,01411300,,BRREP Car Park mntce,Leis Man Poult Wood Golf Centr,M15HEP20001953,
http://statistics.data.gov.uk/id/local-authority/29UP,Tonbridge & Malling Borough Council,12/8/2021,0031018331/3,31018331, 85.70,Arnold & Court Ltd,01411300,,Maintenance of Grounds,Churchyards St Peter & St Paul,B28MX000020402,
http://statistics.data.gov.uk/id/local-authority/29UP,Tonbridge & Malling Borough Council,12/8/2021,0031018331/4,31018331, 57.15,Arnold & Court Ltd,01411300,,Repair & Mtce of Fixed Plant,Boro Highways & Emergency Oper,E01AA000020501,
http://statistics.data.gov.uk/id/local-authority/29UP,Tonbridge & Malling Borough Council,12/8/2021,0031018331/5,31018331, 154.85,Arnold & Court Ltd,01411300,,Maintenance - General,Security Services Management,E09GA000040135,
http://statistics.data.gov.uk/id/local-authority/29UP,Tonbridge & Malling Borough Council,12/8/2021,0031018331/6,31018331, 114.30,Arnold & Court Ltd,01411300,,Premises Repairs & Maintenance,Parking Off-Street,E10HA000020601,
http://statistics.data.gov.uk/id/local-authority/29UP,Tonbridge & Malling Borough Council,12/8/2021,0031018333/1,31018333, 150.00,Imperial Civil Enforcement Solutions,00057200,,Information Technology,Parking Off-Street,E10HA000071170,310042748
http://statistics.data.gov.uk/id/local-authority/29UP,Tonbridge & Malling Borough Council,12/8/2021,0031018333/2,31018333, 225.00,Imperial Civil Enforcement Solutions,00057200,,Information Technology,Parking On-Street,E10HD000071170,310042748
http://statistics.data.gov.uk/id/local-authority/29UP,Tonbridge & Malling Borough Council,12/8/2021,0031018334/1,31018334, 675.00,Archway Highway Services Ltd,01398000,,Premises Repairs & Maintenance,Parking On-Street,E10HD000020601,310042744
http://statistics.data.gov.uk/id/local-authority/29UP,Tonbridge & Malling Borough Council,12/8/2021,0031018335/1,31018335, 958.26,CDER Group,01773300,,Adjudication & Enforcement Ser,Parking Off-Street,E10HA000044230,
http://statistics.data.gov.uk/id/local-authority/29UP,Tonbridge & Malling Borough Council,12/8/2021,0031018338/1,31018338, 720.00,Chroma Vision Ltd,00891600,,Contract Payments,LLCP Path Improvements,P05FH000009904,210056500
http://statistics.data.gov.uk/id/local-authority/29UP,Tonbridge & Malling Borough Council,12/8/2021,0031018339/1,31018339, 2320.00,Marston,01485000,,Adjudication & Enforcement Ser,Parking Off-Street,E10HA000044230,
http://statistics.data.gov.uk/id/local-authority/29UP,Tonbridge & Malling Borough Council,12/8/2021,0031018341/1,31018341, 3831.24,PSR Lighting & Signs Ltd,01265400,,Tonbridge Christmas Lighting,Eco Dev & Reg Ton Chris Light,D52TF000047015,210056522
http://statistics.data.gov.uk/id/local-authority/29UP,Tonbridge & Malling Borough Council,12/8/2021,0031018342/1,31018342, 28.44,Royal British Legion Industries Ltd,00139700,,Purchases,Parking Off-Street,E10HA000040101,310042753
http://statistics.data.gov.uk/id/local-authority/29UP,Tonbridge & Malling Borough Council,12/8/2021,0032009324/1,32009324, 395.00,Haymarket Media Group Ltd,00299600,,Local Dev Framework Expenses,Preparation of Local Dev Frame,A01AE000044023,320003360
http://statistics.data.gov.uk/id/local-authority/29UP,Tonbridge & Malling Borough Council,12/8/2021,0032009325/3,32009325, 1490.00,The Oyster Partnership,01196400,,Temporary Staff,Planning Sals&Overheads,D01AJDJ0111300,
http://statistics.data.gov.uk/id/local-authority/29UP,Tonbridge & Malling Borough Council,12/8/2021,0032009326/1,32009326, 208.20,KM Media Group Ltd,00053900,,Advertising General,Development Management,A01ABZ99944216,320003355
http://statistics.data.gov.uk/id/local-authority/29UP,Tonbridge & Malling Borough Council,12/8/2021,0032009327/1,32009327, 104.10,KM Media Group Ltd,00053900,,Advertising General,Development Management,A01ABZ99944216,320003361
http://statistics.data.gov.uk/id/local-authority/29UP,Tonbridge & Malling Borough Council,12/8/2021,0041033720/1,41033720, 182.58,NEC Software Solutions UK Ltd,01073900,202159745,Software Hire & Support,Information Technology,D27KD000044059,410032053
http://statistics.data.gov.uk/id/local-authority/29UP,Tonbridge & Malling Borough Council,12/8/2021,0041033722/10,41033722, 20.00,Computershare Voucher Services,01212600,,National Insurance,Env Hlth & Hsg Sals&Overheads,D01AVDV0211191,
http://statistics.data.gov.uk/id/local-authority/29UP,Tonbridge & Malling Borough Council,12/8/2021,0041033722/11,41033722, 243.00,Computershare Voucher Services,01212600,,Childcare Scheme,Env Hlth & Hsg Sals&Overheads,D01AVDV0711136,
http://statistics.data.gov.uk/id/local-authority/29UP,Tonbridge & Malling Borough Council,12/8/2021,0041033722/12,41033722, 9.72,Computershare Voucher Services,01212600,,National Insurance,Env Hlth & Hsg Sals&Overheads,D01AVDV0711191,
http://statistics.data.gov.uk/id/local-authority/29UP,Tonbridge & Malling Borough Council,12/8/2021,0041033722/3,41033722, 20.00,Computershare Voucher Services,01212600,,Childcare Scheme,Finance Sals&Overheads,D01AFDF0911136,
http://statistics.data.gov.uk/id/local-authority/29UP,Tonbridge & Malling Borough Council,12/8/2021,0041033722/4,41033722, 0.80,Computershare Voucher Services,01212600,,National Insurance,Finance Sals&Overheads,D01AFDF0911191,
http://statistics.data.gov.uk/id/local-authority/29UP,Tonbridge & Malling Borough Council,12/8/2021,0041033722/5,41033722, 90.00,Computershare Voucher Services,01212600,,Childcare Scheme,St Scene & Leis Sals&Overheads,D01AGDG0411136,
http://statistics.data.gov.uk/id/local-authority/29UP,Tonbridge & Malling Borough Council,12/8/2021,0041033722/6,41033722, 3.60,Computershare Voucher Services,01212600,,National Insurance,St Scene & Leis Sals&Overheads,D01AGDG0411191,
http://statistics.data.gov.uk/id/local-authority/29UP,Tonbridge & Malling Borough Council,12/8/2021,0041033722/7,41033722, 50.00,Computershare Voucher Services,01212600,,Childcare Scheme,Legal Sals&Overheads,D01ARDR0011136,
http://statistics.data.gov.uk/id/local-authority/29UP,Tonbridge & Malling Borough Council,12/8/2021,0041033722/8,41033722, 2.00,Computershare Voucher Services,01212600,,National Insurance,Legal Sals&Overheads,D01ARDR0011191,
http://statistics.data.gov.uk/id/local-authority/29UP,Tonbridge & Malling Borough Council,12/8/2021,0041033722/9,41033722, 0.80,Computershare Voucher Services,01212600,,National Insurance,Env Hlth & Hsg Sals&Overheads,D01AVDV0211191,
http://statistics.data.gov.uk/id/local-authority/29UP,Tonbridge & Malling Borough Council,12/8/2021,0041033725/1,41033725, 4500.00,NEC Software Solutions UK Ltd,01073900,202159745,Localisation of CTax Benefit,Council Tax Support,D42QF000048060,410032094
http://statistics.data.gov.uk/id/local-authority/29UP,Tonbridge & Malling Borough Council,12/8/2021,0041033726/3,41033726, 610.50,KH Recruitment Ltd,01738900,,Temporary Staff,Finance Sals&Overheads,D01AFDF1111300,
http://statistics.data.gov.uk/id/local-authority/29UP,Tonbridge & Malling Borough Council,12/8/2021,0041033728/3,41033728, 912.50,Morgan Hunt UK Ltd,01086900,,Temporary Staff,Finance Sals&Overheads,D01AFDF1111300,
http://statistics.data.gov.uk/id/local-authority/29UP,Tonbridge & Malling Borough Council,12/8/2021,0041033730/1,41033730, 143.62,Rundle & Co Ltd,00087200,,Bailiffs Commission,Local Revenue & NNDR Collect,D41QA000044075,
http://statistics.data.gov.uk/id/local-authority/29UP,Tonbridge & Malling Borough Council,12/8/2021,0041033731/3,41033731, 34134.00,Kent County Council,00322500,,Temporary Staff,Finance Sals&Overheads,D01AFDF0811300,
http://statistics.data.gov.uk/id/local-authority/29UP,Tonbridge & Malling Borough Council,12/8/2021,0041033744/2,41033744, 9.17,Tonbridge & Malling Borough Council,00103800,,Funeral Expenses,Public Health Act 1984,H26SG000054002,
http://statistics.data.gov.uk/id/local-authority/29UP,Tonbridge & Malling Borough Council,12/8/2021,0041033745/1,41033745, 883.94,Maidstone Borough Council,01173700,,Bailiffs Commission,Local Revenue & NNDR Collect,D41QA000044075,
http://statistics.data.gov.uk/id/local-authority/29UP,Tonbridge & Malling Borough Council,12/8/2021,0041033746/1,41033746, 1569.14,Rundle & Co Ltd,00087200,,Bailiffs Commission,Local Revenue & NNDR Collect,D41QA000044075,
http://statistics.data.gov.uk/id/local-authority/29UP,Tonbridge & Malling Borough Council,12/8/2021,0051008626/1,51008626, 1200.00,Irrv,00050300,,Ext Fees/Prof & Tech,Training,D10DCDF1113561,510010530
http://statistics.data.gov.uk/id/local-authority/29UP,Tonbridge & Malling Borough Council,12/8/2021,0051008627/1,51008627, 198.00,RH Environmental Ltd RH Global,01221000,,Ext Fees/Prof & Tech,Training,D10DCDV0913561,510010529
http://statistics.data.gov.uk/id/local-authority/29UP,Tonbridge & Malling Borough Council,12/8/2021,0051008628/1,51008628, 140.00,Irrv,00050300,,Ext Fees/Prof & Tech,Training,D10DCDF1113561,510010527
http://statistics.data.gov.uk/id/local-authority/29UP,Tonbridge & Malling Borough Council,12/8/2021,0051008629/1,51008629, 1200.00,LABC Training,01180300,,Ext Fees/Prof & Tech,Training,D10DCDJ0213561,510010531
http://statistics.data.gov.uk/id/local-authority/29UP,Tonbridge & Malling Borough Council,12/15/2021,0011043572/3,11043572, 1044.00,Sky Guard,01620000,,Purchases,Electoral Registration,D31MF000040101,
http://statistics.data.gov.uk/id/local-authority/29UP,Tonbridge & Malling Borough Council,12/15/2021,0011043572/4,11043572, 696.00,Sky Guard,01620000,,Purchases,Licences - Fee Paying,H27SH000040101,
http://statistics.data.gov.uk/id/local-authority/29UP,Tonbridge & Malling Borough Council,12/15/2021,0011043594/1,11043594, 2533.60,Reach Publishing Services Ltd,01806900,,Re-opening High Streets,Eco Dev & Reg Gen Bus Support,D52TDCV1948076,110069297
http://statistics.data.gov.uk/id/local-authority/29UP,Tonbridge & Malling Borough Council,12/15/2021,0011043595/1,11043595, 150.00,Seashell Communications,01825200,,Information & Publicity,Information & Publicity,D32MJ000044076,110069349
http://statistics.data.gov.uk/id/local-authority/29UP,Tonbridge & Malling Borough Council,12/15/2021,0011043596/1,11043596, 79.00,BML Building Services Ltd,01505000,,BRREP Window/door repairs,Leis Man Poult Wood Golf Centr,M15HEP20001919,110069312
http://statistics.data.gov.uk/id/local-authority/29UP,Tonbridge & Malling Borough Council,12/15/2021,0011043597/1,11043597, 1003.12,Ecosan Services Ltd,01061300,,Miscellaneous Services,Cleaning & Security,D21FDDD5044015,110069348
http://statistics.data.gov.uk/id/local-authority/29UP,Tonbridge & Malling Borough Council,12/15/2021,0011043598/1,11043598, 668.76,Ecosan Services Ltd,01061300,,Miscellaneous Services,Cleaning & Security,D21FDDD1044015,110069348
http://statistics.data.gov.uk/id/local-authority/29UP,Tonbridge & Malling Borough Council,12/15/2021,0011043599/1,11043599, 1011.02,Ecosan Services Ltd,01061300,,Miscellaneous Services,Cleaning & Security,D21FDDD6044015,110069348
http://statistics.data.gov.uk/id/local-authority/29UP,Tonbridge & Malling Borough Council,12/15/2021,0011043600/1,11043600, 79.00,BML Building Services Ltd,01505000,,BRREP Window/door repairs,PC - General,M15JAP20001919,110069336
http://statistics.data.gov.uk/id/local-authority/29UP,Tonbridge & Malling Borough Council,12/15/2021,0011043601/1,11043601, 1140.00,G C Industrial Heating Services,00578100,,BRREP Servicing - Heating Syst,Gibson Building East,M15KGP20001934,110069342
http://statistics.data.gov.uk/id/local-authority/29UP,Tonbridge & Malling Borough Council,12/15/2021,0011043602/1,11043602, 490.00,G C Industrial Heating Services,00578100,,BRREP Servicing - boilers,Tonbridge Farm Pavillion,M15HGP20001929,110069346
http://statistics.data.gov.uk/id/local-authority/29UP,Tonbridge & Malling Borough Council,12/15/2021,0011043603/1,11043603, 2560.00,G C Industrial Heating Services,00578100,,BRREP Servicing - Sadia Tea,Gibson Building East,M15KGP20001932,110069278
http://statistics.data.gov.uk/id/local-authority/29UP,Tonbridge & Malling Borough Council,12/15/2021,0011043604/1,11043604, 360.00,G C Industrial Heating Services,00578100,,BRREP Response - General,Leis Man Poult Wood Golf Centr,M15HEP50001997,110069344
http://statistics.data.gov.uk/id/local-authority/29UP,Tonbridge & Malling Borough Council,12/15/2021,0011043605/1,11043605, 300.00,G C Industrial Heating Services,00578100,,BRREP Servicing - Heating Syst,Leis Man Poult Wood Golf Centr,M15HEP20001934,110069345
http://statistics.data.gov.uk/id/local-authority/29UP,Tonbridge & Malling Borough Council,12/15/2021,0011043606/1,11043606, 290.00,G C Industrial Heating Services,00578100,,BRREP Servicing - boilers,Angel Centre,M15HAP20001929,110069343
http://statistics.data.gov.uk/id/local-authority/29UP,Tonbridge & Malling Borough Council,12/15/2021,0011043607/1,11043607, 465.00,Thomson Snell & Passmore,00101700,,Legal Fees,Legal Sals&Overheads,D01ARDR0044002,
http://statistics.data.gov.uk/id/local-authority/29UP,Tonbridge & Malling Borough Council,12/15/2021,0011043608/1,11043608, 186.00,Thomson Snell & Passmore,00101700,,Legal Fees,Legal Sals&Overheads,D01ARDR0044002,
http://statistics.data.gov.uk/id/local-authority/29UP,Tonbridge & Malling Borough Council,12/15/2021,0011043609/1,11043609, 8036.00,Thomson Snell & Passmore,00101700,,Legal Fees,Legal Sals&Overheads,D01ARDR0044002,
http://statistics.data.gov.uk/id/local-authority/29UP,Tonbridge & Malling Borough Council,12/15/2021,0011043610/1,11043610, 19.75,Oasis Group  - Box-It South East,00966800,931579211,Purchases,Electoral Registration,D31MF000040101,
http://statistics.data.gov.uk/id/local-authority/29UP,Tonbridge & Malling Borough Council,12/15/2021,0011043611/1,11043611, 350.00,Plaxtol Village Stores,01692800,,H&CG Fund Council Specific,Eco Dev & Reg Gen Bus Support,D52TD000047027,
http://statistics.data.gov.uk/id/local-authority/29UP,Tonbridge & Malling Borough Council,12/15/2021,0011043612/1,11043612, 125.00,A One Event Services,01776600,,Re-opening High Streets,Eco Dev & Reg Gen Bus Support,D52TDCV1948076,
http://statistics.data.gov.uk/id/local-authority/29UP,Tonbridge & Malling Borough Council,12/15/2021,0011043614/1,11043614, 176.25,Seymour Hire Ltd,00737200,,Purchases,Conduct of Elections,D31MG000040101,
http://statistics.data.gov.uk/id/local-authority/29UP,Tonbridge & Malling Borough Council,12/15/2021,0011043615/1,11043615, 155.00,Record UK Ltd,01116900,,BRREP Servicing-entrance doors,Larkfield Leisure Centre,M15HDP20001927,
http://statistics.data.gov.uk/id/local-authority/29UP,Tonbridge & Malling Borough Council,12/15/2021,0011043616/1,11043616, 775.00,Driven to perfection,01541000,,Mayors Transport Allowance,Mayoral & Other Member Support,D29LX000034111,
http://statistics.data.gov.uk/id/local-authority/29UP,Tonbridge & Malling Borough Council,12/15/2021,0011043617/1,11043617, 344.83,Initial Washroom Hygiene,00048300,,Laundry - Roller Towels,Cleaning & Security,D21FD000042003,
http://statistics.data.gov.uk/id/local-authority/29UP,Tonbridge & Malling Borough Council,12/15/2021,0011043618/1,11043618, 1931.37,Royal Mail,00086200,,Postages - PPI / Walksort,Conduct of Elections,D31MG000045017,
http://statistics.data.gov.uk/id/local-authority/29UP,Tonbridge & Malling Borough Council,12/15/2021,0011043618/2,11043618, 2256.53,Royal Mail,00086200,,Purchases,Mailsort Stock Account,K37BR000001002,
http://statistics.data.gov.uk/id/local-authority/29UP,Tonbridge & Malling Borough Council,12/15/2021,0011043618/3,11043618, 1.60,Royal Mail,00086200,,Purchases,Mailsort Stock Account,K37BR000001002,
http://statistics.data.gov.uk/id/local-authority/29UP,Tonbridge & Malling Borough Council,12/15/2021,0011043619/1,11043619, 39.22,Atlas Facilities Managment Limited ,01075900,,Miscellaneous Services,Cleaning & Security,D21FDDD1044015,
http://statistics.data.gov.uk/id/local-authority/29UP,Tonbridge & Malling Borough Council,12/15/2021,0011043620/1,11043620, 524.00,Canon (UK) Limited,00298700,,Purchases - Paper,Multi Function Devices,D22GB000040102,
http://statistics.data.gov.uk/id/local-authority/29UP,Tonbridge & Malling Borough Council,12/15/2021,0011043621/1,11043621, 4.00,Royal Mail,00086200,,Purchases,Mailsort Stock Account,K37BR000001002,
http://statistics.data.gov.uk/id/local-authority/29UP,Tonbridge & Malling Borough Council,12/15/2021,0011043621/2,11043621, 3.20,Royal Mail,00086200,,Purchases,Mailsort Stock Account,K37BR000001002,
http://statistics.data.gov.uk/id/local-authority/29UP,Tonbridge & Malling Borough Council,12/15/2021,0011043621/3,11043621, 996.51,Royal Mail,00086200,,Purchases,Mailsort Stock Account,K37BR000001002,
http://statistics.data.gov.uk/id/local-authority/29UP,Tonbridge & Malling Borough Council,12/15/2021,0011043623/1,11043623, 260.00,G C Industrial Heating Services,00578100,,BRREP Response - General,Angel Centre,M15HAP50001997,
http://statistics.data.gov.uk/id/local-authority/29UP,Tonbridge & Malling Borough Council,12/15/2021,0011043624/1,11043624, 360.00,G C Industrial Heating Services,00578100,,BRREP Servicing - boilers,Tonbridge Swimming Pool,M15HBP20001929,
http://statistics.data.gov.uk/id/local-authority/29UP,Tonbridge & Malling Borough Council,12/15/2021,0011043625/1,11043625, 150.00,G C Industrial Heating Services,00578100,,BRREP Response - General,Leis Man Poult Wood Golf Centr,M15HEP50001997,
http://statistics.data.gov.uk/id/local-authority/29UP,Tonbridge & Malling Borough Council,12/15/2021,0011043626/1,11043626, 270.00,G C Industrial Heating Services,00578100,,BRREP Response - General,Larkfield Leisure Centre,M15HDP50001997,
http://statistics.data.gov.uk/id/local-authority/29UP,Tonbridge & Malling Borough Council,12/15/2021,0012008205/1,12008205, 2600.00,NTT United Kingdom Ltd,01747000,,Software Hire & Support,Information Technology,D27KD000044059,410031927
http://statistics.data.gov.uk/id/local-authority/29UP,Tonbridge & Malling Borough Council,12/15/2021,0012008206/3,12008206, 12278.77,Adelante Software Limited,01393800,812115871,Software Hire & Support,Information Technology,D27KD000044059,
http://statistics.data.gov.uk/id/local-authority/29UP,Tonbridge & Malling Borough Council,12/15/2021,0012008207/1,12008207, 213.56,Kingsfield Computer Products Ltd,00942800,,Toner Cartridges,Information Technology,D27KD000043018,410032089
http://statistics.data.gov.uk/id/local-authority/29UP,Tonbridge & Malling Borough Council,12/15/2021,0012008207/2,12008207, 320.33,Kingsfield Computer Products Ltd,00942800,,Toner Cartridges,Information Technology,D27KD000043018,410032089
http://statistics.data.gov.uk/id/local-authority/29UP,Tonbridge & Malling Borough Council,12/15/2021,0012008207/3,12008207, 213.56,Kingsfield Computer Products Ltd,00942800,,Toner Cartridges,Information Technology,D27KD000043018,410032089
http://statistics.data.gov.uk/id/local-authority/29UP,Tonbridge & Malling Borough Council,12/15/2021,0012008207/4,12008207, 213.56,Kingsfield Computer Products Ltd,00942800,,Toner Cartridges,Information Technology,D27KD000043018,410032089
http://statistics.data.gov.uk/id/local-authority/29UP,Tonbridge & Malling Borough Council,12/15/2021,0021037622/1,21037622, 242.40,Brook Security Ltd,00012700,,Gates / Security,Patrolling,B22LF000044017,210056587
http://statistics.data.gov.uk/id/local-authority/29UP,Tonbridge & Malling Borough Council,12/15/2021,0021037623/1,21037623, 335.00,David Hodgkinson Photographer,01068900,,Marketing,Events Development,B41TJZ99944215,210056608
http://statistics.data.gov.uk/id/local-authority/29UP,Tonbridge & Malling Borough Council,12/15/2021,0021037624/1,21037624, 670.00,Green Oak Services,01635000,,Health & Safety - Trees,Countryside/Woodland Mgt,B22LG000044045,210056550
http://statistics.data.gov.uk/id/local-authority/29UP,Tonbridge & Malling Borough Council,12/15/2021,0021037625/1,21037625, 520.00,Green Oak Services,01635000,,Maintenance of Grounds,Open Spaces & Amenity Areas,B22LE000020402,210056582
http://statistics.data.gov.uk/id/local-authority/29UP,Tonbridge & Malling Borough Council,12/15/2021,0021037626/1,21037626, 300.00,The Play Inspection Company,01242100,,Maintenance of Grounds,Haysden Country Park,B22LC000020402,210056467
http://statistics.data.gov.uk/id/local-authority/29UP,Tonbridge & Malling Borough Council,12/15/2021,0021037627/1,21037627, 12495.00,Rob Steele T/A Radii Skatepark Repairs,01683100,,Initial Furniture & Equipment,Capital Renewals Leisure,P05KGBC0509906,210056559
http://statistics.data.gov.uk/id/local-authority/29UP,Tonbridge & Malling Borough Council,12/15/2021,0021037628/1,21037628, 820.00,SWS Countryside & Landscape,01567200,,Maintenance of Grounds,Open Spaces & Amenity Areas,B22LE000020402,210056400
http://statistics.data.gov.uk/id/local-authority/29UP,Tonbridge & Malling Borough Council,12/15/2021,0021037629/1,21037629, 139.60,SWS Countryside & Landscape,01567200,,Purchases,Haysden Country Park,B22LC000040101,210056440
http://statistics.data.gov.uk/id/local-authority/29UP,Tonbridge & Malling Borough Council,12/15/2021,0021037630/1,21037630, 30.00,Weddle and Co,00714900,,Maintenance of Grounds,Open Spaces & Amenity Areas,B22LE000020402,210056579
http://statistics.data.gov.uk/id/local-authority/29UP,Tonbridge & Malling Borough Council,12/15/2021,0021037631/1,21037631, 35728.00,Valley Landscape Management Provincial,01054600,,Contract Payments,LLCP Path Improvements,P05FH000009904,210056543
http://statistics.data.gov.uk/id/local-authority/29UP,Tonbridge & Malling Borough Council,12/15/2021,0021037635/1,21037635, 45.00,North Kent College,01805000,,Partnership Fees,Youth Partnerships,B33PG000044048,210056490
http://statistics.data.gov.uk/id/local-authority/29UP,Tonbridge & Malling Borough Council,12/15/2021,0021037636/1,21037636, 345.00,Elite Stewarding and Security Solutions,01743600,,Events Support,Events Development,B41TJ000044041,
http://statistics.data.gov.uk/id/local-authority/29UP,Tonbridge & Malling Borough Council,12/15/2021,0021037637/1,21037637, 325.00,Rob Steele T/A Radii Skatepark Repairs,01683100,,Initial Furniture & Equipment,Capital Renewals Leisure,P05KGBC0509906,210056611
http://statistics.data.gov.uk/id/local-authority/29UP,Tonbridge & Malling Borough Council,12/15/2021,0022026054/1,22026054, 13266.20,Urbaser LTD,01718800,,Contract Payments,Refuse Collection,H20SA000054001,
http://statistics.data.gov.uk/id/local-authority/29UP,Tonbridge & Malling Borough Council,12/15/2021,0022026054/2,22026054, 14728.08,Urbaser LTD,01718800,,Contract Payments,Street Scene,H23SD000054001,
http://statistics.data.gov.uk/id/local-authority/29UP,Tonbridge & Malling Borough Council,12/15/2021,0022026054/3,22026054, 1584.16,Urbaser LTD,01718800,,Contract Payments,Dry Recycling,H34SR000054001,
http://statistics.data.gov.uk/id/local-authority/29UP,Tonbridge & Malling Borough Council,12/15/2021,0022026054/4,22026054, 264.83,Urbaser LTD,01718800,,Contract Payments,Food Recycling,H34SS000054001,
http://statistics.data.gov.uk/id/local-authority/29UP,Tonbridge & Malling Borough Council,12/15/2021,0022026054/5,22026054, 12430.91,Urbaser LTD,01718800,,Contract Payments,Garden Waste Recycling,H34ST000054001,
http://statistics.data.gov.uk/id/local-authority/29UP,Tonbridge & Malling Borough Council,12/15/2021,0022026055/1,22026055, 14124.19,Urbaser LTD,01718800,,Contract Payments,Refuse Collection,H20SA000054001,
http://statistics.data.gov.uk/id/local-authority/29UP,Tonbridge & Malling Borough Council,12/15/2021,0022026055/2,22026055, 16653.63,Urbaser LTD,01718800,,Contract Payments,Street Scene,H23SD000054001,
http://statistics.data.gov.uk/id/local-authority/29UP,Tonbridge & Malling Borough Council,12/15/2021,0022026055/3,22026055, 2288.18,Urbaser LTD,01718800,,Contract Payments,Dry Recycling,H34SR000054001,
http://statistics.data.gov.uk/id/local-authority/29UP,Tonbridge & Malling Borough Council,12/15/2021,0022026055/4,22026055, 273.35,Urbaser LTD,01718800,,Contract Payments,Food Recycling,H34SS000054001,
http://statistics.data.gov.uk/id/local-authority/29UP,Tonbridge & Malling Borough Council,12/15/2021,0022026055/5,22026055, 12428.12,Urbaser LTD,01718800,,Contract Payments,Garden Waste Recycling,H34ST000054001,
http://statistics.data.gov.uk/id/local-authority/29UP,Tonbridge & Malling Borough Council,12/15/2021,0022026069/3,22026069, 17.83,REDACTED PERSONAL DATA,01088600,,Purchases,St Scene & Leis Sals&Overheads,D01AGDG2040101,
http://statistics.data.gov.uk/id/local-authority/29UP,Tonbridge & Malling Borough Council,12/15/2021,0022026070/1,22026070, 70859.00,Paramount Independent Property Suppliers,01595300,,Temporary Accommodation,Homelessness,C01AA000044051,
http://statistics.data.gov.uk/id/local-authority/29UP,Tonbridge & Malling Borough Council,12/15/2021,0022026072/1,22026072, 2149.97,Peabody South East LTD,01680900,,Other Expenses,Disabled Facilities Grant Mand,P03AC000009908,
http://statistics.data.gov.uk/id/local-authority/29UP,Tonbridge & Malling Borough Council,12/15/2021,0022026073/1,22026073, 9579.60,Elite Complete Build LTD,01625900,,Other Expenses,Disabled Facilities Grant Mand,P03AC000009908,
http://statistics.data.gov.uk/id/local-authority/29UP,Tonbridge & Malling Borough Council,12/15/2021,0022026074/3,22026074, 31.77,Bulb Energy Ltd,01799000,214948301,Electricity,Homelessness,C01AATNHS21002,
http://statistics.data.gov.uk/id/local-authority/29UP,Tonbridge & Malling Borough Council,12/15/2021,0022026076/1,22026076, 896.08,Scottish Water Business Stream Ltd,01641100,,Sewerage Charges,Public Conveniences,H22SCH01224003,
http://statistics.data.gov.uk/id/local-authority/29UP,Tonbridge & Malling Borough Council,12/15/2021,0022026077/1,22026077, 332.40,Countrystyle Group,00835900,781981681,Plastic Recycling,Dry Recycling,H34SR000054019,
http://statistics.data.gov.uk/id/local-authority/29UP,Tonbridge & Malling Borough Council,12/15/2021,0022026078/1,22026078, 763.31,G2 Recruitment Solutions,01786000,,Temporary Staff,Env Hlth & Hsg Sals&Overheads,D01AVDV0711300,
http://statistics.data.gov.uk/id/local-authority/29UP,Tonbridge & Malling Borough Council,12/15/2021,0022026079/1,22026079, 1233.00,The Helping Hand Company,00766500,,Abatement Initiatives,Street Scene,H23SD000044006,220003175
http://statistics.data.gov.uk/id/local-authority/29UP,Tonbridge & Malling Borough Council,12/15/2021,0022026079/2,22026079, 735.30,The Helping Hand Company,00766500,,Abatement Initiatives,Street Scene,H23SD000044006,220003175
http://statistics.data.gov.uk/id/local-authority/29UP,Tonbridge & Malling Borough Council,12/15/2021,0022026080/1,22026080, 6204.00,Kent Accommodation Ltd,01722000,,Temporary Accommodation,Homelessness,C01AA000044051,
http://statistics.data.gov.uk/id/local-authority/29UP,Tonbridge & Malling Borough Council,12/15/2021,0022026081/1,22026081, 35729.00,Look Ahead,01746900,,Professional Fees,Homelessness,C01AAROUG44001,
http://statistics.data.gov.uk/id/local-authority/29UP,Tonbridge & Malling Borough Council,12/15/2021,0022026082/3,22026082, 2670.00,Lucy and Martin Recycling LTD,01694200,,Vehicle Licences,Dry Recycling,H34SR000030105,
http://statistics.data.gov.uk/id/local-authority/29UP,Tonbridge & Malling Borough Council,12/15/2021,0022026083/3,22026083, 756.00,The Oyster Partnership,01196400,,Temporary Staff,Env Hlth & Hsg Sals&Overheads,D01AVDV0711300,
http://statistics.data.gov.uk/id/local-authority/29UP,Tonbridge & Malling Borough Council,12/15/2021,0022026084/1,22026084, 630.00,Peabody South East LTD,01680900,,Other Expenses,Housing Assistance,P03AD000009908,
http://statistics.data.gov.uk/id/local-authority/29UP,Tonbridge & Malling Borough Council,12/15/2021,0022026085/3,22026085, 9720.00,Simon Niblett Lettings,00072600,,Temporary Accommodation,Homelessness,C01AA000044051,
http://statistics.data.gov.uk/id/local-authority/29UP,Tonbridge & Malling Borough Council,12/15/2021,0022026086/3,22026086, 3300.00,Simon Niblett Lettings,00072600,,Temporary Accommodation,Homelessness,C01AA000044051,
http://statistics.data.gov.uk/id/local-authority/29UP,Tonbridge & Malling Borough Council,12/15/2021,0022026087/1,22026087, 6590.00,Simply Rented Ltd ,01691400,,Temporary Accommodation,Homelessness,C01AA000044051,
http://statistics.data.gov.uk/id/local-authority/29UP,Tonbridge & Malling Borough Council,12/15/2021,0022026088/1,22026088, 4805.00,Under My Roof Ltd,01806700,,Temporary Accommodation,Homelessness,C01AA000044051,
http://statistics.data.gov.uk/id/local-authority/29UP,Tonbridge & Malling Borough Council,12/15/2021,0022026089/1,22026089, 3.65,EDF Energy Customers plc,01035000,,Electricity,Homelessness,C01AATNHS21002,
http://statistics.data.gov.uk/id/local-authority/29UP,Tonbridge & Malling Borough Council,12/15/2021,0022026090/1,22026090, 109.48,EDF Energy Customers plc,01035000,,Electricity,Homelessness,C01AATNHS21002,
http://statistics.data.gov.uk/id/local-authority/29UP,Tonbridge & Malling Borough Council,12/15/2021,0022026091/1,22026091, 12.18,EDF Energy Customers plc,01035000,,Electricity,Homelessness,C01AATNHS21002,
http://statistics.data.gov.uk/id/local-authority/29UP,Tonbridge & Malling Borough Council,12/15/2021,0022026092/1,22026092, 82.00,Paul Graves Trading as Lockrite,01706700,,Repairs & Mtce to Buildings,Homelessness,C01AATNHS20101,
http://statistics.data.gov.uk/id/local-authority/29UP,Tonbridge & Malling Borough Council,12/15/2021,0022026093/1,22026093, 2774.85,Wybone Ltd,00815800,,Responsible Dog Ownership,Street Scene,H23SD000044050,220003152
http://statistics.data.gov.uk/id/local-authority/29UP,Tonbridge & Malling Borough Council,12/15/2021,0022026093/2,22026093, 749.85,Wybone Ltd,00815800,,Responsible Dog Ownership,Street Scene,H23SD000044050,220003152
http://statistics.data.gov.uk/id/local-authority/29UP,Tonbridge & Malling Borough Council,12/15/2021,0022026093/3,22026093, 1259.85,Wybone Ltd,00815800,,Responsible Dog Ownership,Street Scene,H23SD000044050,220003152
http://statistics.data.gov.uk/id/local-authority/29UP,Tonbridge & Malling Borough Council,12/15/2021,0022026093/4,22026093, 16.09,Wybone Ltd,00815800,,Responsible Dog Ownership,Street Scene,H23SD000044050,220003152
http://statistics.data.gov.uk/id/local-authority/29UP,Tonbridge & Malling Borough Council,12/15/2021,0022026094/1,22026094, 3546.25,Elite Complete Build LTD,01625900,,Other Expenses,Disabled Facilities Grant Mand,P03AC000009908,
http://statistics.data.gov.uk/id/local-authority/29UP,Tonbridge & Malling Borough Council,12/15/2021,0022026095/1,22026095, 11076.00,Astor Bannerman (Medical) Ltd,00963200,,Other Expenses,Disabled Facilities Grant Mand,P03AC000009908,
http://statistics.data.gov.uk/id/local-authority/29UP,Tonbridge & Malling Borough Council,12/15/2021,0022026096/1,22026096, 1843.09,Peabody South East LTD,01680900,,Other Expenses,Disabled Facilities Grant Mand,P03AC000009908,
http://statistics.data.gov.uk/id/local-authority/29UP,Tonbridge & Malling Borough Council,12/15/2021,0022026097/1,22026097, 5315.00,Higher Elevation LTD,01298700,,Other Expenses,Disabled Facilities Grant Mand,P03AC000009908,
http://statistics.data.gov.uk/id/local-authority/29UP,Tonbridge & Malling Borough Council,12/15/2021,0022026098/1,22026098, 2343.55,Aran Services LTD,01562900,,Other Expenses,Housing Assistance,P03AD000009908,
http://statistics.data.gov.uk/id/local-authority/29UP,Tonbridge & Malling Borough Council,12/15/2021,0022026099/1,22026099, 3.00,Tonbridge & Malling Borough Council,00103700,,Other Expenses,Housing Assistance,P03AD000009908,
http://statistics.data.gov.uk/id/local-authority/29UP,Tonbridge & Malling Borough Council,12/15/2021,0022026101/1,22026101, 12.49,REDACTED PERSONAL DATA,01826100,,Purchases,Environmental Protection,H32SN000040101,
http://statistics.data.gov.uk/id/local-authority/29UP,Tonbridge & Malling Borough Council,12/15/2021,0022026102/1,22026102, 950.00,Stiles Harold Williams LLP,01721700,,Temporary Accommodation,Homelessness,C01AASYRI44051,
http://statistics.data.gov.uk/id/local-authority/29UP,Tonbridge & Malling Borough Council,12/15/2021,0022026103/1,22026103, 4650.00,Connells Residential Lettings,01668100,,Temporary Accommodation,Homelessness,C01AASYRI44051,
http://statistics.data.gov.uk/id/local-authority/29UP,Tonbridge & Malling Borough Council,12/15/2021,0022026104/1,22026104, 950.00,Stiles Harold Williams LLP,01721700,,Temporary Accommodation,Homelessness,C01AASYRI44051,
http://statistics.data.gov.uk/id/local-authority/29UP,Tonbridge & Malling Borough Council,12/15/2021,0022026105/1,22026105, 528.24,Stiles Harold Williams LLP,01721700,,Temporary Accommodation,Homelessness,C01AASYRI44051,
http://statistics.data.gov.uk/id/local-authority/29UP,Tonbridge & Malling Borough Council,12/15/2021,0022026106/1,22026106, 1126.88,REDACTED PERSONAL DATA,01766200,,Temporary Accommodation,Homelessness,C01AASYRI44051,
http://statistics.data.gov.uk/id/local-authority/29UP,Tonbridge & Malling Borough Council,12/15/2021,0022026106/2,22026106, 741.00,REDACTED PERSONAL DATA,01766200,,Temporary Accommodation,Homelessness,C01AASYRI44051,
http://statistics.data.gov.uk/id/local-authority/29UP,Tonbridge & Malling Borough Council,12/15/2021,0022026106/3,22026106, 1638.72,REDACTED PERSONAL DATA,01766200,,Temporary Accommodation,Homelessness,C01AASYRI44051,
http://statistics.data.gov.uk/id/local-authority/29UP,Tonbridge & Malling Borough Council,12/15/2021,0031018346/4,31018346, 6.66,Npower Ltd,01675800,,Electricity,Parking Off-Street,E10HA000021002,
http://statistics.data.gov.uk/id/local-authority/29UP,Tonbridge & Malling Borough Council,12/15/2021,0031018346/5,31018346, 147.15,Npower Ltd,01675800,,Electricity,Parking Off-Street,E10HA000021002,
http://statistics.data.gov.uk/id/local-authority/29UP,Tonbridge & Malling Borough Council,12/15/2021,0031018347/4,31018347, 2.52,Npower Ltd,01675800,,Electricity,Parking Off-Street,E10HA000021002,
http://statistics.data.gov.uk/id/local-authority/29UP,Tonbridge & Malling Borough Council,12/15/2021,0031018347/5,31018347, 63.87,Npower Ltd,01675800,,Electricity,Parking Off-Street,E10HA000021002,
http://statistics.data.gov.uk/id/local-authority/29UP,Tonbridge & Malling Borough Council,12/15/2021,0031018348/4,31018348, 31.19,Npower Ltd,01675800,,Electricity,Parking Off-Street,E10HA000021002,
http://statistics.data.gov.uk/id/local-authority/29UP,Tonbridge & Malling Borough Council,12/15/2021,0031018348/5,31018348, 1.20,Npower Ltd,01675800,,Electricity,Parking Off-Street,E10HA000021002,
http://statistics.data.gov.uk/id/local-authority/29UP,Tonbridge & Malling Borough Council,12/15/2021,0031018349/1,31018349, 410.00,Wellden Land Surveys,01410600,,Professional Fees,Boro Drainage & Land Drainage,E20MA000044001,310042644
http://statistics.data.gov.uk/id/local-authority/29UP,Tonbridge & Malling Borough Council,12/15/2021,0031018350/1,31018350, 1759.60,Duke Contractors Ltd,00082900,,Contract Payments,Boro Drainage & Land Drainage,E20MA000054001,310042728
http://statistics.data.gov.uk/id/local-authority/29UP,Tonbridge & Malling Borough Council,12/15/2021,0032009328/1,32009328, 1755.00,Charles & Associates,01739200,,Application & Appeals,Development Management,A01AB000044194,320003335
http://statistics.data.gov.uk/id/local-authority/29UP,Tonbridge & Malling Borough Council,12/15/2021,0032009329/3,32009329, 1254.05,Tunbridge Wells Borough Council,00844600,,Temporary Staff,Planning Sals&Overheads,D01AJDJ0311300,
http://statistics.data.gov.uk/id/local-authority/29UP,Tonbridge & Malling Borough Council,12/15/2021,0032009330/1,32009330, 3.00,KCS,00054200,,Stationery,Planning Sals&Overheads,D01AJDJ0143003,320003310
http://statistics.data.gov.uk/id/local-authority/29UP,Tonbridge & Malling Borough Council,12/15/2021,0032009330/2,32009330, 67.50,KCS,00054200,,Stationery,Planning Sals&Overheads,D01AJDJ0143003,320003310
http://statistics.data.gov.uk/id/local-authority/29UP,Tonbridge & Malling Borough Council,12/15/2021,0032009330/3,32009330, 7.70,KCS,00054200,,Stationery,Planning Sals&Overheads,D01AJDJ0143003,320003310
http://statistics.data.gov.uk/id/local-authority/29UP,Tonbridge & Malling Borough Council,12/15/2021,0032009330/4,32009330, 5.90,KCS,00054200,,Stationery,Planning Sals&Overheads,D01AJDJ0143003,320003310
http://statistics.data.gov.uk/id/local-authority/29UP,Tonbridge & Malling Borough Council,12/15/2021,0032009330/5,32009330, 7.45,KCS,00054200,,Stationery,Planning Sals&Overheads,D01AJDJ0143003,320003310
http://statistics.data.gov.uk/id/local-authority/29UP,Tonbridge & Malling Borough Council,12/15/2021,0032009331/3,32009331, 586.80,The Oyster Partnership,01196400,,Temporary Staff,Planning Sals&Overheads,D01AJDJ0111300,
http://statistics.data.gov.uk/id/local-authority/29UP,Tonbridge & Malling Borough Council,12/15/2021,0032009332/1,32009332, 5071.25,G L Hearn Ltd,01483700,,Local Dev Framework Expenses,Preparation of Local Dev Frame,A01AE000044023,320003359
http://statistics.data.gov.uk/id/local-authority/29UP,Tonbridge & Malling Borough Council,12/15/2021,0041033749/3,41033749, 101.28,Adelante Software Limited,01393800,812115871,Credit Card Commission,Banking Arrangements,D43QK000044082,
http://statistics.data.gov.uk/id/local-authority/29UP,Tonbridge & Malling Borough Council,12/15/2021,0041033752/3,41033752, 107212.96,Clear Channel United Kingdom,01583700,,Repair & Mtce of Fixed Plant,Boro Highways & Emergency Oper,E01AAE90220501,
http://statistics.data.gov.uk/id/local-authority/29UP,Tonbridge & Malling Borough Council,12/15/2021,0041033755/3,41033755, 925.00,Morgan Hunt UK Ltd,01086900,,Temporary Staff,Finance Sals&Overheads,D01AFDF1111300,
http://statistics.data.gov.uk/id/local-authority/29UP,Tonbridge & Malling Borough Council,12/15/2021,0041033756/3,41033756, 1007.00,Morgan Hunt UK Ltd,01086900,,Temporary Staff,Finance Sals&Overheads,D01AFDF1111300,
http://statistics.data.gov.uk/id/local-authority/29UP,Tonbridge & Malling Borough Council,12/15/2021,0041033757/1,41033757, 80.00,WorldPay Ltd,01402000,991280207,Credit Card Commission,Banking Arrangements,D43QK000044082,
http://statistics.data.gov.uk/id/local-authority/29UP,Tonbridge & Malling Borough Council,12/15/2021,0041033757/2,41033757, 59.92,WorldPay Ltd,01402000,991280207,Credit Card Commission,Banking Arrangements,D43QK000044082,
http://statistics.data.gov.uk/id/local-authority/29UP,Tonbridge & Malling Borough Council,12/15/2021,0041033757/3,41033757, 0.64,WorldPay Ltd,01402000,991280207,Credit Card Commission,Banking Arrangements,D43QK000044082,
http://statistics.data.gov.uk/id/local-authority/29UP,Tonbridge & Malling Borough Council,12/15/2021,0041033758/1,41033758, 80.00,WorldPay Ltd,01402000,991280207,Credit Card Commission,Banking Arrangements,D43QK000044082,
http://statistics.data.gov.uk/id/local-authority/29UP,Tonbridge & Malling Borough Council,12/15/2021,0041033758/2,41033758, 46.40,WorldPay Ltd,01402000,991280207,Credit Card Commission,Banking Arrangements,D43QK000044082,
http://statistics.data.gov.uk/id/local-authority/29UP,Tonbridge & Malling Borough Council,12/15/2021,0041033758/3,41033758, 1.76,WorldPay Ltd,01402000,991280207,Credit Card Commission,Banking Arrangements,D43QK000044082,
http://statistics.data.gov.uk/id/local-authority/29UP,Tonbridge & Malling Borough Council,12/15/2021,0041033759/1,41033759, 80.00,WorldPay Ltd,01402000,991280207,Credit Card Commission,Banking Arrangements,D43QK000044082,
http://statistics.data.gov.uk/id/local-authority/29UP,Tonbridge & Malling Borough Council,12/15/2021,0041033759/2,41033759, 160.08,WorldPay Ltd,01402000,991280207,Credit Card Commission,Banking Arrangements,D43QK000044082,
http://statistics.data.gov.uk/id/local-authority/29UP,Tonbridge & Malling Borough Council,12/15/2021,0041033760/3,41033760, 585.75,KH Recruitment Ltd,01738900,,Temporary Staff,Finance Sals&Overheads,D01AFDF1111300,
http://statistics.data.gov.uk/id/local-authority/29UP,Tonbridge & Malling Borough Council,12/15/2021,0041033761/3,41033761, 16.80,Tameside Metropolitan Borough,00770200,,Other Expenses,Finance Sals&Overheads,D01AFDF0648010,
http://statistics.data.gov.uk/id/local-authority/29UP,Tonbridge & Malling Borough Council,12/15/2021,0041033777/1,41033777, 795.86,King & Shaxson Investments,01411100,,Professional Fees,Treasury Management,D43QT000044001,
http://statistics.data.gov.uk/id/local-authority/29UP,Tonbridge & Malling Borough Council,12/16/2021,0041033782/1,41033782, 154.00,HMCTS,01487000,,Legal Fees,Legal Sals&Overheads,D01AR000044002,
http://statistics.data.gov.uk/id/local-authority/29UP,Tonbridge & Malling Borough Council,12/17/2021,0041033784/1,41033784, 186.13,Utax UK Ltd,01658500,642302771,Copy Charges,Multi Function Devices,D22GB000040125,
http://statistics.data.gov.uk/id/local-authority/29UP,Tonbridge & Malling Borough Council,12/20/2021,0041033790/1,41033790, 195.00,National Westminster Bank Plc,00069400,,Bank Charges,Banking Arrangements,D43QK000044222,
http://statistics.data.gov.uk/id/local-authority/29UP,Tonbridge & Malling Borough Council,12/22/2021,0011043200/1,11043200, 490.00,Premier Group Recycling Ltd,01365300,,Confidential Waste,Cleaning & Security,D21FD000044009,
http://statistics.data.gov.uk/id/local-authority/29UP,Tonbridge & Malling Borough Council,12/22/2021,0011043506/1,11043506, 278.78,Atlas Facilities Managment Limited ,01075900,,Miscellaneous Services,Cleaning & Security,D21FDDD5044015,110069319
http://statistics.data.gov.uk/id/local-authority/29UP,Tonbridge & Malling Borough Council,12/22/2021,0011043627/1,11043627, 1500.00,Ryan Leisure Activities Ltd,01133600,,BRREP Servicing - Squash Court,Leis Man Poult Wood Golf Centr,M15HEP20001958,110069266
http://statistics.data.gov.uk/id/local-authority/29UP,Tonbridge & Malling Borough Council,12/22/2021,0011043628/1,11043628, 1014.00,Loxton Installations Ltd,01278800,,BRREP IEE Testing,Tonbridge Castle / CAB,M15KFP30001991,110069241
http://statistics.data.gov.uk/id/local-authority/29UP,Tonbridge & Malling Borough Council,12/22/2021,0011043629/1,11043629, 1655.00,Loxton Installations Ltd,01278800,,BRREP Servicing-CarParkLightg,Larkfield Leisure Centre,M15HDP20001944,110069316
http://statistics.data.gov.uk/id/local-authority/29UP,Tonbridge & Malling Borough Council,12/22/2021,0011043630/1,11043630, 1588.00,Loxton Installations Ltd,01278800,,BRREP IEE Testing,Tonbridge Castle / CAB,M15KFP30001991,110069242
http://statistics.data.gov.uk/id/local-authority/29UP,Tonbridge & Malling Borough Council,12/22/2021,0011043632/1,11043632, 660.00,Loxton Installations Ltd,01278800,,BRREP IEE Testing,Leis Man Poult Wood Golf Centr,M15HEP30001991,110069292
http://statistics.data.gov.uk/id/local-authority/29UP,Tonbridge & Malling Borough Council,12/22/2021,0011043633/1,11043633, 129.00,Loxton Installations Ltd,01278800,,BRREP Response - General,Pleasure Grounds & Open Spaces,M15HHP50001997,110069291
http://statistics.data.gov.uk/id/local-authority/29UP,Tonbridge & Malling Borough Council,12/22/2021,0011043634/1,11043634, 352.00,Loxton Installations Ltd,01278800,,BRREP Servicing - pool plant,Larkfield Leisure Centre,M15HDP20001910,110069290
http://statistics.data.gov.uk/id/local-authority/29UP,Tonbridge & Malling Borough Council,12/22/2021,0011043635/1,11043635, 365.00,Loxton Installations Ltd,01278800,,BRREP Response - General,Pleasure Grounds & Open Spaces,M15HHP50001997,110069288
http://statistics.data.gov.uk/id/local-authority/29UP,Tonbridge & Malling Borough Council,12/22/2021,0011043636/1,11043636, 7202.00,Loxton Installations Ltd,01278800,,BRREP Pool hall lighting mntce,Larkfield Leisure Centre,M15HDP20001913,110069248
http://statistics.data.gov.uk/id/local-authority/29UP,Tonbridge & Malling Borough Council,12/22/2021,0011043637/1,11043637, 350.00,BML Building Services Ltd,01505000,,BRREP Response - General,Tonbridge Swimming Pool,M15HBP50001997,110069350
http://statistics.data.gov.uk/id/local-authority/29UP,Tonbridge & Malling Borough Council,12/22/2021,0011043638/1,11043638, 55.00,Triple S Lift Services,01344900,,BRREP Servicing - lifts,Angel Centre,M15HAP20001930,110069286
http://statistics.data.gov.uk/id/local-authority/29UP,Tonbridge & Malling Borough Council,12/22/2021,0011043639/1,11043639, 68.00,K T Fire Protection Ltd,00057000,,BRREP Servicing - FireAlarmSys,Tonbridge Castle / CAB,M15KFP20001937,110069102
http://statistics.data.gov.uk/id/local-authority/29UP,Tonbridge & Malling Borough Council,12/22/2021,0011043640/1,11043640, 68.00,K T Fire Protection Ltd,00057000,,BRREP Servicing - FireAlarmSys,Tonbridge Castle Gatehouse,M15HKP20001937,110069113
http://statistics.data.gov.uk/id/local-authority/29UP,Tonbridge & Malling Borough Council,12/22/2021,0011043641/1,11043641, 138.00,K T Fire Protection Ltd,00057000,,BRREP Servicing - FireAlarmSys,Gibson Building West,M15KBP20001937,110069100
http://statistics.data.gov.uk/id/local-authority/29UP,Tonbridge & Malling Borough Council,12/22/2021,0011043642/1,11043642, 195.70,K T Fire Protection Ltd,00057000,,BRREP Servicing - FireAlarmSys,Gibson Building East,M15KGP20001937,110069101
http://statistics.data.gov.uk/id/local-authority/29UP,Tonbridge & Malling Borough Council,12/22/2021,0011043643/1,11043643, 185.00,K T Fire Protection Ltd,00057000,,BRREP Servicing - FireAlarmSys,Larkfield Leisure Centre,M15HDP20001937,110069104
http://statistics.data.gov.uk/id/local-authority/29UP,Tonbridge & Malling Borough Council,12/22/2021,0011043644/1,11043644, 152.50,K T Fire Protection Ltd,00057000,,BRREP Servicing - FireAlarmSys,Leis Man Poult Wood Golf Centr,M15HEP20001937,110069103
http://statistics.data.gov.uk/id/local-authority/29UP,Tonbridge & Malling Borough Council,12/22/2021,0011043645/1,11043645, 64.00,K T Fire Protection Ltd,00057000,,BRREP Servicing - FireAlarmSys,Tonbridge Farm Pavillion,M15HGP20001937,110069105
http://statistics.data.gov.uk/id/local-authority/29UP,Tonbridge & Malling Borough Council,12/22/2021,0011043646/1,11043646, 138.00,K T Fire Protection Ltd,00057000,,BRREP Servicing - FireAlarmSys,Angel Centre,M15HAP20001937,110069112
http://statistics.data.gov.uk/id/local-authority/29UP,Tonbridge & Malling Borough Council,12/22/2021,0011043647/1,11043647, 1820.00,Malling Masonry,01822100,,BRREP New Road E/Malling Wall,Land Review,M15MAP20001962,110069339
http://statistics.data.gov.uk/id/local-authority/29UP,Tonbridge & Malling Borough Council,12/22/2021,0011043648/1,11043648, 109.50,SMI Group,01761800,,Other Expenses,Civil Contingencies,D33NACV1948010,110069358
http://statistics.data.gov.uk/id/local-authority/29UP,Tonbridge & Malling Borough Council,12/22/2021,0011043649/1,11043649, 78.50,Triple S Lift Services,01344900,,BRREP Servicing - lifts,Gibson Building East,M15KGP20001930,110069280
http://statistics.data.gov.uk/id/local-authority/29UP,Tonbridge & Malling Borough Council,12/22/2021,0011043650/1,11043650, 300.00,Green Fish Consulting,01627700,,BRREP General Maintenance,Land Review,M15MAP49901900,110069333
http://statistics.data.gov.uk/id/local-authority/29UP,Tonbridge & Malling Borough Council,12/22/2021,0011043651/1,11043651, 2650.00,Rubicon Environmental Services Limited,01634100,,BRREP Asbestos monitoring,Shops & Maisonettes,M15NAP30001993,110069362
http://statistics.data.gov.uk/id/local-authority/29UP,Tonbridge & Malling Borough Council,12/22/2021,0011043652/3,11043652, 436.21,Extinguisher Doctor Ltd,00059500,,BRREP Servicing-FireExtinguish,Gibson Building West,M15KBP20001938,
http://statistics.data.gov.uk/id/local-authority/29UP,Tonbridge & Malling Borough Council,12/22/2021,0011043652/4,11043652, 436.21,Extinguisher Doctor Ltd,00059500,,BRREP Servicing-FireExtinguish,Gibson Building East,M15KGP20001938,
http://statistics.data.gov.uk/id/local-authority/29UP,Tonbridge & Malling Borough Council,12/22/2021,0011043653/1,11043653, 1070.40,Westcountry Group,00656400,,Purchases,Central Stationery Stock A/c,K03AD000001002,
http://statistics.data.gov.uk/id/local-authority/29UP,Tonbridge & Malling Borough Council,12/22/2021,0011043654/3,11043654, 16.20,KCS,00054200,,Cleaning & Domestic Supplies,Cleaning & Security,D21FDDD1026001,
http://statistics.data.gov.uk/id/local-authority/29UP,Tonbridge & Malling Borough Council,12/22/2021,0011043655/3,11043655, 743.00,G C Industrial Heating Services,00578100,,BRREP Servicing - boilers,Angel Centre,M15HAP20001929,
http://statistics.data.gov.uk/id/local-authority/29UP,Tonbridge & Malling Borough Council,12/22/2021,0011043656/1,11043656, 1600.10,GSF SANDYLIGHT LTD,01705300,,Temporary Staff,Admin & Prop Sals&Overheads,D01AADA0511300,
http://statistics.data.gov.uk/id/local-authority/29UP,Tonbridge & Malling Borough Council,12/22/2021,0011043658/3,11043658, 1040.00,Financial Data Management  Plc,00035400,,External Printing,Electoral Registration,D31MF000043001,
http://statistics.data.gov.uk/id/local-authority/29UP,Tonbridge & Malling Borough Council,12/22/2021,0011043659/1,11043659, 208.00,BML Building Services Ltd,01505000,,BRREP Response - General,Larkfield Leisure Centre,M15HDP50001997,
http://statistics.data.gov.uk/id/local-authority/29UP,Tonbridge & Malling Borough Council,12/22/2021,0011043660/1,11043660, 35.00,REDACTED PERSONAL DATA,00012900,,Postages - PPI / Walksort,I T Sals&Overheads,D01AN000045017,
http://statistics.data.gov.uk/id/local-authority/29UP,Tonbridge & Malling Borough Council,12/22/2021,0011043660/2,11043660, 18.00,REDACTED PERSONAL DATA,00012900,,Postages - PPI / Walksort,Electoral Registration,D31MF000045017,
http://statistics.data.gov.uk/id/local-authority/29UP,Tonbridge & Malling Borough Council,12/22/2021,0011043661/3,11043661, 148.38,Key Craft,01148600,,Purchases,TIC Stock Account,K18AX000001002,
http://statistics.data.gov.uk/id/local-authority/29UP,Tonbridge & Malling Borough Council,12/22/2021,0011043662/1,11043662, 378.32,Eryl Davies Veterinary Surgeon,01657600,,Professional Fees,Licences - Fee Paying,H27SH000044001,
http://statistics.data.gov.uk/id/local-authority/29UP,Tonbridge & Malling Borough Council,12/22/2021,0011043663/1,11043663, 670.00,Eryl Davies Veterinary Surgeon,01657600,,Professional Fees,Licences - Fee Paying,H27SH000044001,
http://statistics.data.gov.uk/id/local-authority/29UP,Tonbridge & Malling Borough Council,12/22/2021,0011043664/1,11043664, 240.00,Tonbridge Historical Society,00458000,,Purchases,TIC Stock Account,K18AX000001002,
http://statistics.data.gov.uk/id/local-authority/29UP,Tonbridge & Malling Borough Council,12/22/2021,0011043665/1,11043665, 215.99,Prosec General Security Ltd,00810600,,Office Security,Ton Castle Council Chamber,D21FC000044047,
http://statistics.data.gov.uk/id/local-authority/29UP,Tonbridge & Malling Borough Council,12/22/2021,0011043665/2,11043665, 736.68,Prosec General Security Ltd,00810600,,Office Security,Cleaning & Security,D21FD000044047,
http://statistics.data.gov.uk/id/local-authority/29UP,Tonbridge & Malling Borough Council,12/22/2021,0011043665/3,11043665, 2902.50,Prosec General Security Ltd,00810600,,Office Security,Tonbridge Gateway,D23TG000044047,
http://statistics.data.gov.uk/id/local-authority/29UP,Tonbridge & Malling Borough Council,12/22/2021,0011043666/1,11043666, 4249.60,KCS,00054200,,Gas,Buildings,D21FEDD1021003,
http://statistics.data.gov.uk/id/local-authority/29UP,Tonbridge & Malling Borough Council,12/22/2021,0011043667/7,11043667, 4249.60,KCS,00054200,,Gas,Buildings,D21FEDD1021003,
http://statistics.data.gov.uk/id/local-authority/29UP,Tonbridge & Malling Borough Council,12/22/2021,0011043668/1,11043668, 39.22,Atlas Facilities Managment Limited ,01075900,,Miscellaneous Services,Cleaning & Security,D21FDDD6044015,
http://statistics.data.gov.uk/id/local-authority/29UP,Tonbridge & Malling Borough Council,12/22/2021,0011043669/1,11043669, 337.81,Scottish Water Business Stream Ltd,01641100,,Estate Management Charge,Land Review,D40PS000020400,
http://statistics.data.gov.uk/id/local-authority/29UP,Tonbridge & Malling Borough Council,12/22/2021,0011043670/1,11043670, 420.00,Eryl Davies Veterinary Surgeon,01657600,,Professional Fees,Licences - Fee Paying,H27SH000044001,
http://statistics.data.gov.uk/id/local-authority/29UP,Tonbridge & Malling Borough Council,12/22/2021,0011043671/1,11043671, 453.75,Kings Hill Parish Council,00262200,,Rents,Conduct of Elections,D31MG000022001,
http://statistics.data.gov.uk/id/local-authority/29UP,Tonbridge & Malling Borough Council,12/22/2021,0011043672/1,11043672, 300.00,Kings Hill Cricket Club ,01308200,,Rents,Conduct of Elections,D31MG000022001,
http://statistics.data.gov.uk/id/local-authority/29UP,Tonbridge & Malling Borough Council,12/22/2021,0011043673/1,11043673, 416.67,Leybourne Parish Council,00162300,,Rents,Conduct of Elections,D31MG000022001,
http://statistics.data.gov.uk/id/local-authority/29UP,Tonbridge & Malling Borough Council,12/22/2021,0011043674/1,11043674, 190.00,West Malling Baptist Church,01806100,,Rents,Conduct of Elections,D31MG000022001,
http://statistics.data.gov.uk/id/local-authority/29UP,Tonbridge & Malling Borough Council,12/22/2021,0011043675/1,11043675, 900.18,Castle Water,01696500,,Estate Management Charge,Land Review,D40PS000020400,
http://statistics.data.gov.uk/id/local-authority/29UP,Tonbridge & Malling Borough Council,12/22/2021,0011043676/1,11043676, 128.78,KCS,00054200,,Gas,Buildings,D21FEDD6021003,
http://statistics.data.gov.uk/id/local-authority/29UP,Tonbridge & Malling Borough Council,12/22/2021,0011043677/1,11043677, 4787.91,KCS,00054200,,Electricity,Buildings,D21FEDD1021002,
http://statistics.data.gov.uk/id/local-authority/29UP,Tonbridge & Malling Borough Council,12/22/2021,0011043678/1,11043678, 2927.22,KCS,00054200,,Electricity,Buildings,D21FEDD5021002,
http://statistics.data.gov.uk/id/local-authority/29UP,Tonbridge & Malling Borough Council,12/22/2021,0011043679/1,11043679, 2199.85,KCS,00054200,,Electricity,Buildings,D21FEDD6021002,
http://statistics.data.gov.uk/id/local-authority/29UP,Tonbridge & Malling Borough Council,12/22/2021,0011043680/1,11043680, 199.71,KCS,00054200,,Estate Management Charge,Land Review,D40PS000020400,
http://statistics.data.gov.uk/id/local-authority/29UP,Tonbridge & Malling Borough Council,12/22/2021,0011043681/3,11043681, 280.37,Idox Software Ltd,00962400,,Electronic Elector Responses,Electoral Registration,D31MF000044102,
http://statistics.data.gov.uk/id/local-authority/29UP,Tonbridge & Malling Borough Council,12/22/2021,0011043682/1,11043682, 720.00,G C Industrial Heating Services,00578100,,BRREP Servicing - Heating Syst,Tonbridge Swimming Pool,M15HBP20001934,110069062
http://statistics.data.gov.uk/id/local-authority/29UP,Tonbridge & Malling Borough Council,12/22/2021,0011043683/1,11043683, 1089.00,G C Industrial Heating Services,00578100,,BRREP Servicing - Heating Syst,Gibson Building West,M15KBP20001934,110069061
http://statistics.data.gov.uk/id/local-authority/29UP,Tonbridge & Malling Borough Council,12/22/2021,0011043684/1,11043684, 335.00,G C Industrial Heating Services,00578100,,BRREP Servicing - Heating Syst,Gibson Building East,M15KGP20001934,110069063
http://statistics.data.gov.uk/id/local-authority/29UP,Tonbridge & Malling Borough Council,12/22/2021,0011043685/3,11043685, 125.00,A One Event Services,01776600,,Re-opening High Streets,Eco Dev & Reg Gen Bus Support,D52TDCV1948076,
http://statistics.data.gov.uk/id/local-authority/29UP,Tonbridge & Malling Borough Council,12/22/2021,0011043686/1,11043686, 35.00,REDACTED PERSONAL DATA,01681100,,Postages - PPI / Walksort,I T Sals&Overheads,D01AN000045017,
http://statistics.data.gov.uk/id/local-authority/29UP,Tonbridge & Malling Borough Council,12/22/2021,0011043687/1,11043687, 35.00,REDACTED PERSONAL DATA,00012900,,Postages - PPI / Walksort,I T Sals&Overheads,D01AN000045017,
http://statistics.data.gov.uk/id/local-authority/29UP,Tonbridge & Malling Borough Council,12/22/2021,0011043687/2,11043687, 8.75,REDACTED PERSONAL DATA,00012900,,Postages - PPI / Walksort,Env Hlth & Hsg Sals&Overheads,D01AVDV0745017,
http://statistics.data.gov.uk/id/local-authority/29UP,Tonbridge & Malling Borough Council,12/22/2021,0011043688/1,11043688, 1205.23,KCS,00054200,,Gas,Buildings,D21FEDD1021003,
http://statistics.data.gov.uk/id/local-authority/29UP,Tonbridge & Malling Borough Council,12/22/2021,0012008208/1,12008208, 320.33,Kingsfield Computer Products Ltd,00942800,,Toner Cartridges,Information Technology,D27KD000043018,410032089
http://statistics.data.gov.uk/id/local-authority/29UP,Tonbridge & Malling Borough Council,12/22/2021,0012008209/1,12008209, 650.00,Camwey Technology,01627200,,Software Hire & Support,Information Technology,D27KD000044059,410032098
http://statistics.data.gov.uk/id/local-authority/29UP,Tonbridge & Malling Borough Council,12/22/2021,0012008209/2,12008209, 3503.31,Camwey Technology,01627200,,Software Hire & Support,Information Technology,D27KD000044059,410032098
http://statistics.data.gov.uk/id/local-authority/29UP,Tonbridge & Malling Borough Council,12/22/2021,0021037638/1,21037638, 275.00,Flash Mobile Welding Services Ltd,01189200,,Purchases,Haysden Country Park,B22LC000040101,210056614
http://statistics.data.gov.uk/id/local-authority/29UP,Tonbridge & Malling Borough Council,12/22/2021,0021037639/1,21037639, 125.00,Flash Mobile Welding Services Ltd,01189200,,Maintenance of Grounds,Open Spaces & Amenity Areas,B22LE000020402,210056612
http://statistics.data.gov.uk/id/local-authority/29UP,Tonbridge & Malling Borough Council,12/22/2021,0021037641/1,21037641, 299.17,Rhino Security,01749300,,Maintenance of Grounds,Haysden Country Park,B22LC000020402,210056615
http://statistics.data.gov.uk/id/local-authority/29UP,Tonbridge & Malling Borough Council,12/22/2021,0021037641/2,21037641, 325.00,Rhino Security,01749300,,Maintenance of Grounds,Haysden Country Park,B22LC000020402,210056615
http://statistics.data.gov.uk/id/local-authority/29UP,Tonbridge & Malling Borough Council,12/22/2021,0021037642/1,21037642, 762.85,Streetmaster (South Wales) Ltd,00222100,,Maintenance of Grounds,Tonbridge Castle Grounds,B22LB000020402,210056471
http://statistics.data.gov.uk/id/local-authority/29UP,Tonbridge & Malling Borough Council,12/22/2021,0021037643/1,21037643, 3057.20,Alliance Leisure Services Ltd,01781100,,Contract Payments,LLCP Facility Improv,P05FF000009904,220003135
http://statistics.data.gov.uk/id/local-authority/29UP,Tonbridge & Malling Borough Council,12/22/2021,0021037643/2,21037643, 18000.00,Alliance Leisure Services Ltd,01781100,,Contract Payments,LLCP Facility Improv,P05FF000009904,220003135
http://statistics.data.gov.uk/id/local-authority/29UP,Tonbridge & Malling Borough Council,12/22/2021,0021037643/3,21037643, 9702.00,Alliance Leisure Services Ltd,01781100,,Contract Payments,LLCP Facility Improv,P05FF000009904,220003135
http://statistics.data.gov.uk/id/local-authority/29UP,Tonbridge & Malling Borough Council,12/22/2021,0021037643/4,21037643, 9000.00,Alliance Leisure Services Ltd,01781100,,Contract Payments,LLCP Facility Improv,P05FF000009904,220003135
http://statistics.data.gov.uk/id/local-authority/29UP,Tonbridge & Malling Borough Council,12/22/2021,0021037643/5,21037643, 5000.00,Alliance Leisure Services Ltd,01781100,,Contract Payments,LLCP Facility Improv,P05FF000009904,220003135
http://statistics.data.gov.uk/id/local-authority/29UP,Tonbridge & Malling Borough Council,12/22/2021,0021037643/6,21037643, 15000.00,Alliance Leisure Services Ltd,01781100,,Contract Payments,LLCP Facility Improv,P05FF000009904,220003135
http://statistics.data.gov.uk/id/local-authority/29UP,Tonbridge & Malling Borough Council,12/22/2021,0021037644/1,21037644, 371.34,Landscape Services Ltd,00057600,,Re-opening High Streets,Eco Dev & Reg Gen Bus Support,D52TDCV1948076,210056596
http://statistics.data.gov.uk/id/local-authority/29UP,Tonbridge & Malling Borough Council,12/22/2021,0021037645/1,21037645, 144.00,Landscape Services Ltd,00057600,,Re-opening High Streets,Eco Dev & Reg Gen Bus Support,D52TDCV1948076,210056601
http://statistics.data.gov.uk/id/local-authority/29UP,Tonbridge & Malling Borough Council,12/22/2021,0021037646/1,21037646, 9896.70,Kompan Ltd,01741600,382219257,Initial Furniture & Equipment,Capital Renewals Leisure,P05KGBC0509906,210056407
http://statistics.data.gov.uk/id/local-authority/29UP,Tonbridge & Malling Borough Council,12/22/2021,0021037647/3,21037647, 65.77,B&Q/Screwfix Direct(TradeUKAccount),00141300,,Protective Clothing,Patrolling,B22LF000042001,
http://statistics.data.gov.uk/id/local-authority/29UP,Tonbridge & Malling Borough Council,12/22/2021,0021037648/1,21037648, 660.00,Atlas Facilities Managment Limited ,01075900,,Gates / Security,Patrolling,B22LF000044017,210056489
http://statistics.data.gov.uk/id/local-authority/29UP,Tonbridge & Malling Borough Council,12/22/2021,0021037649/3,21037649, 190.26,KCC - L.A.S.E.R Commercial Services ,00184300,,Electricity,Tonbridge Castle Grounds,B22LB000021002,
http://statistics.data.gov.uk/id/local-authority/29UP,Tonbridge & Malling Borough Council,12/22/2021,0021037650/3,21037650, 317.96,KCC - L.A.S.E.R Commercial Services ,00184300,,Electricity,Cemetery,B26MP000021002,
http://statistics.data.gov.uk/id/local-authority/29UP,Tonbridge & Malling Borough Council,12/22/2021,0021037651/3,21037651, 92.20,KCC - L.A.S.E.R Commercial Services ,00184300,,Electricity,Cemetery,B26MP000021002,
http://statistics.data.gov.uk/id/local-authority/29UP,Tonbridge & Malling Borough Council,12/22/2021,0021037652/1,21037652, 18132.86,Kompan Ltd,01741600,382219257,Initial Furniture & Equipment,Capital Renewals Leisure,P05KGBC0509906,210056407
http://statistics.data.gov.uk/id/local-authority/29UP,Tonbridge & Malling Borough Council,12/22/2021,0021037653/3,21037653, 50.00,Monitor Pest Control Ltd,01476700,,Pest Control,Leybourne Lakes Country Park,B22LK000044055,
http://statistics.data.gov.uk/id/local-authority/29UP,Tonbridge & Malling Borough Council,12/22/2021,0021037654/1,21037654, 375.00,Flash Mobile Welding Services Ltd,01189200,,Maintenance of Grounds,Haysden Country Park,B22LC000020402,210056617
http://statistics.data.gov.uk/id/local-authority/29UP,Tonbridge & Malling Borough Council,12/22/2021,0021037655/1,21037655, 953.55,Landscape Services Ltd,00057600,,Grounds Maintenance Contract,Cemetery,B26MP000050103,
http://statistics.data.gov.uk/id/local-authority/29UP,Tonbridge & Malling Borough Council,12/22/2021,0022026107/3,22026107, 101.19,British Gas,01148500,,Electricity,Homelessness,C01AAMAUN21002,
http://statistics.data.gov.uk/id/local-authority/29UP,Tonbridge & Malling Borough Council,12/22/2021,0022026110/1,22026110, 2400.00,Craemer UK LTD,01616400,,Initial Furniture & Equipment,Green Waste Bin Growth/Replace,P02BC000009906,220003179
http://statistics.data.gov.uk/id/local-authority/29UP,Tonbridge & Malling Borough Council,12/22/2021,0022026112/1,22026112, 2760.00,Kent Housing,01503200,,Temporary Accommodation,Homelessness,C01AA000044051,
http://statistics.data.gov.uk/id/local-authority/29UP,Tonbridge & Malling Borough Council,12/22/2021,0022026114/1,22026114, 2539.24,Clarion Housing,01078200,,Rent Deposit / Rent in Advance,Homelessness,C01AAC84844093,
http://statistics.data.gov.uk/id/local-authority/29UP,Tonbridge & Malling Borough Council,12/22/2021,0022026115/1,22026115, 6006.00,Straight Plc,01029400,,Purchases,Food Recycling,H34SS000040101,220003155
http://statistics.data.gov.uk/id/local-authority/29UP,Tonbridge & Malling Borough Council,12/22/2021,0022026116/3,22026116, 763.31,G2 Recruitment Solutions,01786000,,Temporary Staff,Env Hlth & Hsg Sals&Overheads,D01AVDV0711300,
http://statistics.data.gov.uk/id/local-authority/29UP,Tonbridge & Malling Borough Council,12/22/2021,0022026117/3,22026117, 2233.11,Vivid Resourcing,01773700,,Temporary Staff,Env Hlth & Hsg Sals&Overheads,D01AVDV0711300,
http://statistics.data.gov.uk/id/local-authority/29UP,Tonbridge & Malling Borough Council,12/22/2021,0022026118/1,22026118, 7568.40,Craemer UK LTD,01616400,,Other Expenses,Green Waste Bin Growth/Replace,P02BC000009908,220003148
http://statistics.data.gov.uk/id/local-authority/29UP,Tonbridge & Malling Borough Council,12/22/2021,0022026119/3,22026119, 320.00,Riley's Removals,01695900,,Homelessness Reduction Initiat,Homelessness,C01AA000048019,
http://statistics.data.gov.uk/id/local-authority/29UP,Tonbridge & Malling Borough Council,12/22/2021,0022026120/1,22026120, 3283.20,SOCOTEC UK Limited,01284300,,Air Quality Monitoring,Environmental Protection,H32SN000054016,220003181
http://statistics.data.gov.uk/id/local-authority/29UP,Tonbridge & Malling Borough Council,12/22/2021,0022026121/1,22026121, 360.00,Peabody South East LTD,01680900,,Other Expenses,Disabled Facilities Grant Mand,P03AC000009908,
http://statistics.data.gov.uk/id/local-authority/29UP,Tonbridge & Malling Borough Council,12/22/2021,0022026122/1,22026122, 3405.00,House to Home Lettings Ltd ,01647600,,Temporary Accommodation,Homelessness,C01AA000044051,
http://statistics.data.gov.uk/id/local-authority/29UP,Tonbridge & Malling Borough Council,12/22/2021,0022026123/3,22026123, 1260.00,The Oyster Partnership,01196400,,Temporary Staff,Env Hlth & Hsg Sals&Overheads,D01AVDV0711300,
http://statistics.data.gov.uk/id/local-authority/29UP,Tonbridge & Malling Borough Council,12/22/2021,0022026124/1,22026124, 9180.65,Elite Complete Build LTD,01625900,,Other Expenses,Disabled Facilities Grant Mand,P03AC000009908,
http://statistics.data.gov.uk/id/local-authority/29UP,Tonbridge & Malling Borough Council,12/22/2021,0022026125/1,22026125, 5200.00,Dolphin Stairlifts,00698900,,Other Expenses,Disabled Facilities Grant Mand,P03AC000009908,
http://statistics.data.gov.uk/id/local-authority/29UP,Tonbridge & Malling Borough Council,12/22/2021,0022026126/1,22026126, 691.20,Peabody South East LTD,01680900,,Other Expenses,Disabled Facilities Grant Mand,P03AC000009908,
http://statistics.data.gov.uk/id/local-authority/29UP,Tonbridge & Malling Borough Council,12/22/2021,0022026128/1,22026128, 43.59,Maidstone Borough Council,01173700,,Council Tax,Homelessness,C01AAMAUN23002,
http://statistics.data.gov.uk/id/local-authority/29UP,Tonbridge & Malling Borough Council,12/22/2021,0022026129/1,22026129, 12300.00,MGB Plastics Ltd,00709600,,Initial Furniture & Equipment,Green Waste Bin Growth/Replace,P02BC000009906,220003178
http://statistics.data.gov.uk/id/local-authority/29UP,Tonbridge & Malling Borough Council,12/22/2021,0022026130/1,22026130, 76.28,Maidstone Borough Council,01173700,,Council Tax,Homelessness,C01AA000023002,
http://statistics.data.gov.uk/id/local-authority/29UP,Tonbridge & Malling Borough Council,12/22/2021,0022026131/1,22026131, 10541.46,Adaptec Mobilty Ltd,01785800,339578354,Other Expenses,Disabled Facilities Grant Mand,P03AC000009908,
http://statistics.data.gov.uk/id/local-authority/29UP,Tonbridge & Malling Borough Council,12/22/2021,0022026132/1,22026132, 1411.66,Peabody South East LTD,01680900,,Other Expenses,Disabled Facilities Grant Mand,P03AC000009908,
http://statistics.data.gov.uk/id/local-authority/29UP,Tonbridge & Malling Borough Council,12/22/2021,0022026133/1,22026133, 1328.02,Peabody South East LTD,01680900,,Other Expenses,Disabled Facilities Grant Mand,P03AC000009908,
http://statistics.data.gov.uk/id/local-authority/29UP,Tonbridge & Malling Borough Council,12/22/2021,0022026134/1,22026134, 256.19,E.ON - Next,01790900,,Electricity,Homelessness,C01AA000021002,
http://statistics.data.gov.uk/id/local-authority/29UP,Tonbridge & Malling Borough Council,12/22/2021,0031018352/1,31018352, 390.00,PSR Lighting & Signs Ltd,01265400,,Tonbridge Christmas Lighting,Eco Dev & Reg Ton Chris Light,D52TF000047015,210056522
http://statistics.data.gov.uk/id/local-authority/29UP,Tonbridge & Malling Borough Council,12/22/2021,0031018355/1,31018355, 575.00,PSR Lighting & Signs Ltd,01265400,,Repair & Mtce of Fixed Plant,Boro Highways & Emergency Oper,E01AA000020501,
http://statistics.data.gov.uk/id/local-authority/29UP,Tonbridge & Malling Borough Council,12/22/2021,0031018356/1,31018356, 1260.00,Sevenoaks District Council,00089300,,Out of Hours Service,Civil Contingencies,D33NA000045025,
http://statistics.data.gov.uk/id/local-authority/29UP,Tonbridge & Malling Borough Council,12/22/2021,0031018358/1,31018358, 235.70,Archway Highway Services Ltd,01398000,,Premises Repairs & Maintenance,Parking On-Street,E10HD000020601,310042744
http://statistics.data.gov.uk/id/local-authority/29UP,Tonbridge & Malling Borough Council,12/22/2021,0031018358/2,31018358, 75.00,Archway Highway Services Ltd,01398000,,Premises Repairs & Maintenance,Parking On-Street,E10HD000020601,310042744
http://statistics.data.gov.uk/id/local-authority/29UP,Tonbridge & Malling Borough Council,12/22/2021,0031018359/3,31018359, 1513.28,CDER Group,01773300,,Adjudication & Enforcement Ser,Parking Off-Street,E10HA000044230,
http://statistics.data.gov.uk/id/local-authority/29UP,Tonbridge & Malling Borough Council,12/22/2021,0032009337/1,32009337, 1200.00,INOVEM,01732400,,Local Dev Framework Expenses,Preparation of Local Dev Frame,A01AE000044023,320003350
http://statistics.data.gov.uk/id/local-authority/29UP,Tonbridge & Malling Borough Council,12/22/2021,0032009338/1,32009338, 5279.31,JBA Consulting,01599000,665300941,Local Dev Framework Expenses,Preparation of Local Dev Frame,A01AE000044023,320003338
http://statistics.data.gov.uk/id/local-authority/29UP,Tonbridge & Malling Borough Council,12/22/2021,0032009339/1,32009339, 2438.35,JBA Consulting,01599000,665300941,Local Dev Framework Expenses,Preparation of Local Dev Frame,A01AE000044023,320003369
http://statistics.data.gov.uk/id/local-authority/29UP,Tonbridge & Malling Borough Council,12/22/2021,0032009340/1,32009340, 218.61,KM Media Group Ltd,00053900,,Advertising General,Development Management,A01ABZ99944216,320003363
http://statistics.data.gov.uk/id/local-authority/29UP,Tonbridge & Malling Borough Council,12/22/2021,0032009343/3,32009343, 1496.80,The Oyster Partnership,01196400,,Temporary Staff,Planning Sals&Overheads,D01AJDJ0111300,
http://statistics.data.gov.uk/id/local-authority/29UP,Tonbridge & Malling Borough Council,12/22/2021,0032009344/1,32009344, 2400.00,Robinson Escott Planning LLP,01653000,,Application & Appeals,Development Management,A01AB000044194,320003337
http://statistics.data.gov.uk/id/local-authority/29UP,Tonbridge & Malling Borough Council,12/22/2021,0032009345/1,32009345, 192.78,KM Media Group Ltd,00053900,,Advertising General,Development Management,A01ABZ99944216,320003364
http://statistics.data.gov.uk/id/local-authority/29UP,Tonbridge & Malling Borough Council,12/22/2021,0032009346/1,32009346, 139.23,KM Media Group Ltd,00053900,,Advertising General,Development Management,A01ABZ99944216,320003367
http://statistics.data.gov.uk/id/local-authority/29UP,Tonbridge & Malling Borough Council,12/22/2021,0032009347/1,32009347, 399.84,KM Media Group Ltd,00053900,,Advertising General,Development Management,A01ABZ99944216,320003368
http://statistics.data.gov.uk/id/local-authority/29UP,Tonbridge & Malling Borough Council,12/22/2021,0041033780/3,41033780, 503.25,KH Recruitment Ltd,01738900,,Temporary Staff,Finance Sals&Overheads,D01AFDF1111300,
http://statistics.data.gov.uk/id/local-authority/29UP,Tonbridge & Malling Borough Council,12/22/2021,0041033791/1,41033791, 925.00,Morgan Hunt UK Ltd,01086900,,Temporary Staff,Finance Sals&Overheads,D01AFDF1111300,
http://statistics.data.gov.uk/id/local-authority/29UP,Tonbridge & Malling Borough Council,12/22/2021,0041033792/1,41033792, 980.50,Morgan Hunt UK Ltd,01086900,,Temporary Staff,Finance Sals&Overheads,D01AFDF1111300,
http://statistics.data.gov.uk/id/local-authority/29UP,Tonbridge & Malling Borough Council,12/22/2021,0041033795/3,41033795, 10540.00,Security Plus + Limited,01815500,536937019,Cash Collection,Parking Off-Street,E10HA000044007,
http://statistics.data.gov.uk/id/local-authority/29UP,Tonbridge & Malling Borough Council,12/22/2021,0041033796/3,41033796, 1820.28,Security Plus + Limited,01815500,536937019,Cash Collection,Parking Off-Street,E10HA000044007,
http://statistics.data.gov.uk/id/local-authority/29UP,Tonbridge & Malling Borough Council,12/22/2021,0041033802/1,41033802, 2318.00,H.M. Revenue & Customs,00048400,,Levy Payment,Apprenticeship Scheme,D10DE000013700,
http://statistics.data.gov.uk/id/local-authority/29UP,Tonbridge & Malling Borough Council,12/22/2021,0051008631/1,51008631, 157.50,St John Ambulance Supplies,01228000,,Ext Fees/Health & Safety,Training,D10DCDG0413566,
http://statistics.data.gov.uk/id/local-authority/29UP,Tonbridge & Malling Borough Council,12/23/2021,0041033808/1,41033808, 68.00,National Westminster Bank Plc,00069400,,Direct Debit / Bank Charges,Local Revenue & NNDR Collect,D41QA000044079,
http://statistics.data.gov.uk/id/local-authority/29UP,Tonbridge & Malling Borough Council,12/23/2021,0041033809/1,41033809, 200.82,National Westminster Bank Plc,00069400,,Direct Debit / Bank Charges,Local Revenue & NNDR Collect,D41QA000044079,
http://statistics.data.gov.uk/id/local-authority/29UP,Tonbridge & Malling Borough Council,12/23/2021,0041033810/1,41033810, 20.19,WorldPay Ltd,01402000,991280207,Credit Card Commission,Banking Arrangements,D43QK000044082,
